Workbook

Sheet Lotto1_T340_1
E1: Convenzione | F1: =SUM(J8:J96)*F5 -> 0
E2: 0.2 | F2: =SUM(K8:K96)*F5 -> 0
E3: Totale | F3: =SUM(F1:F2) -> 0
C5: POWEREDGE T340 Consulta la Guida alla Convenzione ---> | D5: =HYPERLINK("https://convenzioni.converge.it/docs/L1GuidaAllaConvenzioneTecnologieServer3.pdf","&") -> & | E5: Quantità Server | H5: =Riepilogo!G8 -> Version 2.8
C7: Base | D7: =HYPERLINK("https://convenzioni.converge.it/docs/ts3_datasheet/dell-emc-poweredge-t340-spec-sheet.pdf","i") -> i
C8: PowerEdge T340 Server | E8: =IF($F$5>0,"TS3L1-SRV","") ->  | F8: =IF($F$5>0,1,"") ->  | J8: 1399 | L8: =VLOOKUP($C8,TS3L1_ALL,12,FALSE) -> L1N01
C10: Chassis Configuration | D10: =HYPERLINK("https://dellservervr.dell.com/poweredge-t340/","i") -> i
C11: 3.5" Chassis up to 4 Hot Plug Hard Drives and Embedded SATA
C13: Trusted Platform Module (TPM)
C14: Trusted Platform Module 2.0
C16: Processor | D16: =HYPERLINK("https://ark.intel.com/content/www/it/it/ark/products/191040/intel-xeon-e-2236-processor-12m-cache-3-40-ghz.html","i") -> i
C17: Intel® Xeon® E-2236 3.4GHz, 12M cache, 6C/12T, turbo (80W)
C19: Memory Capacity
C20: 16GB | E20: =VLOOKUP($C$20,TS3L1_RAM,13,FALSE) ->  | F20: =VLOOKUP($C$20,TS3L1_RAM,7,FALSE) -> 0 | J20: =VLOOKUP($C$20,TS3L1_RAM,10,FALSE) -> 0 | L20: =VLOOKUP($C20,TS3L1_ALL,12,FALSE) -> 
C22: Operating System
C23: No Operating System | E23: =VLOOKUP($C$23,TS3L1_OS,13,FALSE) ->  | F23: =VLOOKUP($C$23,TS3L1_OS,7,FALSE) ->  | J23: =VLOOKUP($C$23,TS3L1_OS,10,FALSE) -> 0 | L23: =VLOOKUP($C23,TS3L1_ALL,12,FALSE) -> 
C25: Boot Optimized Storage Cards | D25: =HYPERLINK("https://convenzioni.converge.it/docs/ts3_datasheet/DELL_BOSS.pdf","i") -> i
C26: BOSS controller card + with 2 M.2 Sticks 480GB (RAID1),FH | H26: Configurazione RAID e/o NOTE
H27: Specificare la configurazione RAID per l'installazione del Sistema Operativo, se richiesto. e/o inserire eventuali note.
C28: Hard Drives Bay 1
E29: =VLOOKUP($C29,TS3L1_HDD,13,FALSE) ->  | F29: =VLOOKUP($C29,TS3L1_HDD,7,FALSE) ->  | J29: =VLOOKUP($C29,TS3L1_HDD,10,FALSE) -> 0 | K29: =VLOOKUP($C29,TS3L1_HDD,11,FALSE) -> 0 | L29: =VLOOKUP($C29,TS3L1_ALL,12,FALSE) -> 
C31: Hard Drives Bay 2
E32: =VLOOKUP($C32,TS3L1_HDD,13,FALSE) ->  | F32: =VLOOKUP($C32,TS3L1_HDD,7,FALSE) ->  | J32: =VLOOKUP($C32,TS3L1_HDD,10,FALSE) -> 0 | K32: =VLOOKUP($C32,TS3L1_HDD,11,FALSE) -> 0 | L32: =VLOOKUP($C32,TS3L1_ALL,12,FALSE) -> 
C34: Hard Drives Bay 3
E35: =VLOOKUP($C35,TS3L1_HDD,13,FALSE) ->  | F35: =VLOOKUP($C35,TS3L1_HDD,7,FALSE) ->  | J35: =VLOOKUP($C35,TS3L1_HDD,10,FALSE) -> 0 | K35: =VLOOKUP($C35,TS3L1_HDD,11,FALSE) -> 0 | L35: =VLOOKUP($C35,TS3L1_ALL,12,FALSE) -> 
C37: Hard Drives Bay 4
E38: =VLOOKUP($C38,TS3L1_HDD,13,FALSE) ->  | F38: =VLOOKUP($C38,TS3L1_HDD,7,FALSE) ->  | J38: =VLOOKUP($C38,TS3L1_HDD,10,FALSE) -> 0 | K38: =VLOOKUP($C38,TS3L1_HDD,11,FALSE) -> 0 | L38: =VLOOKUP($C38,TS3L1_ALL,12,FALSE) -> 
C40: Power Supply
C41: Single, Hot-plug Power Supply 1+0, 495W | E41: =VLOOKUP($C41,TS3L1_PSU,13,FALSE) ->  | F41: =VLOOKUP($C41,TS3L1_PSU,7,FALSE) ->  | J41: =VLOOKUP($C41,TS3L1_PSU,10,FALSE) -> 0 | L41: =IF((M41+M80+M83)>0,"L1N18",0) -> 0 | M41: =IF(Q41="",0,1) -> 0 | N41: =(M41+M80+M83)/(M41+M80+M83) ->  | O41: =VLOOKUP($C41,TS3L1_PSU,11,FALSE) -> 0 | P41: =N42/N41 ->  | Q41: =VLOOKUP($C41,TS3L1_ALL,12,FALSE) -> 
K42: =IFERROR(N42,0) -> 0 | L42: =IF(Q41="L1N18","TS3L12PSU","TS3L11PSU") -> TS3L11PSU | N42: =(O41+O80+O83)/(M41+M80+M83) -> 
C43: Embedded Systems Management | D43: =HYPERLINK("https://convenzioni.converge.it/docs/ts3_datasheet/idrac-spec-sheet.pdf","i") -> i
C44: iDRAC9,Enterprise
C46: Network Cards
C47: On-Board Broadcom 5720 Dual Port 1Gb LOM
C49: PCI Slot 1 x8 PCIe Gen3 for FH/HL (x8 lanes)
C50: BOSS controller card + with 2 M.2 Sticks 480GB (RAID 1),FH | E50: =VLOOKUP($C50,TS3L1_PCI1,13,FALSE) ->  | F50: =VLOOKUP($C50,TS3L1_PCI1,7,FALSE) ->  | J50: =VLOOKUP($C50,TS3L1_PCI1,10,FALSE) -> 0 | K50: =VLOOKUP($C50,TS3L1_PCI1,11,FALSE) -> 0 | L50: =VLOOKUP($C50,TS3L1_ALL,12,FALSE) -> 
C52: PCI Slot 2 x16 PCIe Gen3 for FH/HL (x8 lanes)
E53: =VLOOKUP($C53,TS3L1_PCI2,13,FALSE) ->  | F53: =VLOOKUP($C53,TS3L1_PCI2,7,FALSE) ->  | J53: =VLOOKUP($C53,TS3L1_PCI2,10,FALSE) -> 0 | K53: =VLOOKUP($C53,TS3L1_PCI2,11,FALSE) -> 0 | L53: =VLOOKUP($C53,TS3L1_ALL,12,FALSE) -> 
C55: PCI Slot 3 x1 PCIe Gen3 for FH/HL (x1 lanes)
E56: =VLOOKUP($C56,TS3L1_PCI3,13,FALSE) ->  | F56: =VLOOKUP($C56,TS3L1_PCI3,7,FALSE) ->  | J56: =VLOOKUP($C56,TS3L1_PCI3,10,FALSE) -> 0 | K56: =VLOOKUP($C56,TS3L1_PCI3,11,FALSE) -> 0 | L56: =VLOOKUP($C56,TS3L1_ALL,12,FALSE) -> 
C58: PCI Slot 4 x8 PCIe Gen3 for FH/HL (x4 lanes)
E59: =VLOOKUP($C59,TS3L1_PCI4,13,FALSE) ->  | F59: =VLOOKUP($C59,TS3L1_PCI4,7,FALSE) ->  | J59: =VLOOKUP($C59,TS3L1_PCI4,10,FALSE) -> 0 | K59: =VLOOKUP($C59,TS3L1_PCI4,11,FALSE) -> 0 | L59: =VLOOKUP($C59,TS3L1_ALL,12,FALSE) -> 
C61: SFP+ Transceivers | F61: Quantità
C62: SFP+ SR Optic for all SFP+ ports | E62: =IF(K62>0,VLOOKUP($C62,TS3L1_ALL,13,FALSE),"") ->  | F62: 0 | K62: =VLOOKUP($C62,TS3L1_ALL,11,FALSE)*F62 -> 0 | L62: =VLOOKUP($C62,TS3L1_ALL,12,FALSE) -> L1N34
C64: SFP+ Direct Attach Cables (Twinax) | F64: Quantità
C65: Dell Networking, Cable, SFP+ to SFP+, 10GbE, Copper Twinax Direct Attach Cable, 1 Meter | E65: =IF(K65>0,VLOOKUP($C65,TS3L1_ALL,13,FALSE),"") ->  | K65: =VLOOKUP($C65,TS3L1_ALL,11,FALSE)*F65 -> 0 | L65: =VLOOKUP($C65,TS3L1_ALL,12,FALSE) -> L1N35
C66: Dell Networking, Cable, SFP+ to SFP+, 10GbE, Copper Twinax Direct Attach Cable, 3 Meter | E66: =IF(K66>0,VLOOKUP($C66,TS3L1_ALL,13,FALSE),"") ->  | K66: =VLOOKUP($C66,TS3L1_ALL,11,FALSE)*F66 -> 0 | L66: =VLOOKUP($C66,TS3L1_ALL,12,FALSE) -> L1N36
C67: Dell Networking, Cable, SFP+ to SFP+, 10GbE, Copper Twinax Direct Attach Cable, 5 Meter | E67: =IF(K67>0,VLOOKUP($C67,TS3L1_ALL,13,FALSE),"") ->  | K67: =VLOOKUP($C67,TS3L1_ALL,11,FALSE)*F67 -> 0 | L67: =VLOOKUP($C67,TS3L1_ALL,12,FALSE) -> L1N37
C69: RJ45 Cables | F69: Quantità
C70: cavo “patch” di 3 mt RJ45 certificato per gigabit ethernet | E70: =IF(K70>0,VLOOKUP($C70,TS3L1_ALL,13,FALSE),"") -> TS3L1-RJ453M | F70: 3 | J70: 0 | K70: =IF(F70>0,(F70)*ConfigurationTS3L1!K58,0) -> 9 | L70: =VLOOKUP($C70,TS3L1_ALL,12,FALSE) -> L1N26
C72: SAS Cables | F72: Quantità
C73: 12Gb HD-Mini to HD-Mini SAS Cable, 2M | E73: =IF(K73>0,VLOOKUP($C73,TS3L1_ALL,13,FALSE),"") ->  | K73: =VLOOKUP($C73,TS3L1_ALL,11,FALSE)*F73 -> 0 | L73: =VLOOKUP($C73,TS3L1_ALL,12,FALSE) -> L1N29
C74: 12Gb HD-Mini to HD-Mini SAS Cable, 6M | E74: =IF(K74>0,VLOOKUP($C74,TS3L1_ALL,13,FALSE),"") ->  | K74: =VLOOKUP($C74,TS3L1_ALL,11,FALSE)*F74 -> 0 | L74: =VLOOKUP($C74,TS3L1_ALL,12,FALSE) -> L1N30
C75: 12Gb HD-Mini SAS cable, 0.5m | E75: =IF(K75>0,VLOOKUP($C75,TS3L1_ALL,13,FALSE),"") ->  | K75: =VLOOKUP($C75,TS3L1_ALL,11,FALSE)*F75 -> 0 | L75: =VLOOKUP($C75,TS3L1_ALL,12,FALSE) -> L1N31
C76: 12Gb HD-Mini SAS cable, 2m | E76: =IF(K76>0,VLOOKUP($C76,TS3L1_ALL,13,FALSE),"") ->  | K76: =VLOOKUP($C76,TS3L1_ALL,11,FALSE)*F76 -> 0 | L76: =VLOOKUP($C76,TS3L1_ALL,12,FALSE) -> L1N32
C77: 12Gb Mini-SAS HD to Mini-SAS HD Cable, 4m | E77: =IF(K77>0,VLOOKUP($C77,TS3L1_ALL,13,FALSE),"") ->  | K77: =VLOOKUP($C77,TS3L1_ALL,11,FALSE)*F77 -> 0 | L77: =VLOOKUP($C77,TS3L1_ALL,12,FALSE) -> L1N33
C79: Bezel
C80: No Bezel | E80: =VLOOKUP($C80,TS3L1_BEZEL,13,FALSE) ->  | F80: =VLOOKUP($C80,TS3L1_BEZEL,7,FALSE) ->  | J80: =VLOOKUP($C80,TS3L1_BEZEL,10,FALSE) -> 0 | M80: =IF(Q80="",0,1) -> 0 | O80: =VLOOKUP($C80,TS3L1_BEZEL,11,FALSE) -> 0 | Q80: =VLOOKUP($C80,TS3L1_ALL,12,FALSE) -> 
C82: Internal Optical Drive
C83: No Internal Optical Drive | E83: =VLOOKUP($C83,TS3L1_DVD,13,FALSE) ->  | F83: =VLOOKUP($C83,TS3L1_DVD,7,FALSE) ->  | J83: =VLOOKUP($C83,TS3L1_DVD,10,FALSE) -> 0 | M83: =IF(Q83="",0,1) -> 0 | O83: =VLOOKUP($C83,TS3L1_DVD,11,FALSE) -> 0 | Q83: =VLOOKUP($C83,TS3L1_ALL,12,FALSE) -> 
C85: Warranty | D85: =HYPERLINK("https://convenzioni.converge.it/docs/ts3_datasheet/TS3warranty.pdf","i") -> i
C86: Manutenzione in garanzia (36 mesi) | E86: =VLOOKUP($C86,TS3L1_WARRANTY,13,FALSE) ->  | F86: =VLOOKUP($C86,TS3L1_WARRANTY,7,FALSE) ->  | J86: =VLOOKUP($C86,TS3L1_WARRANTY,10,FALSE) -> 0 | K86: =VLOOKUP($C86,TS3L1_WARRANTY,11,FALSE) -> 0 | L86: =VLOOKUP($C86,TS3L1_ALL,12,FALSE) -> 
C88: Hard Disk Retention | D88: =HYPERLINK("https://convenzioni.converge.it/docs/ts3_datasheet/DELL_HDD_KYHD.pdf","i") -> i
E89: =IFERROR($N$89,VLOOKUP($C89,TS3L1_ALL,13,FALSE)) ->  | F89: =IF(C89="","",1) ->  | J89: =IFERROR($O$89,VLOOKUP($C89,TS3L1_ALL,10,FALSE)) -> 0 | K89: =IFERROR($P$89,VLOOKUP($C89,TS3L1_ALL,11,FALSE)) -> 0 | L89: =IFERROR($Q$89,VLOOKUP($C89,TS3L1_ALL,12,FALSE)) ->  | N89: =IF($F$86+$F$89=2,VLOOKUP("Hard Disk Retention (60 mesi)",TS3L1_ALL,13,FALSE),VLOOKUP($C89,TS3L1_ALL,13,FALSE)) ->  | O89: =IF($F$86+$F$89=2,VLOOKUP("Hard Disk Retention (60 mesi)",TS3L1_ALL,10,FALSE),VLOOKUP($C89,TS3L1_ALL,10,FALSE)) ->  | P89: =IF($F$86+$F$89=2,VLOOKUP("Hard Disk Retention (60 mesi)",TS3L1_ALL,11,FALSE),VLOOKUP($C89,TS3L1_ALL,11,FALSE)) ->  | Q89: =IF($F$86+$F$89=2,VLOOKUP("Hard Disk Retention (60 mesi)",TS3L1_ALL,12,FALSE),VLOOKUP($C89,TS3L1_ALL,12,FALSE)) -> 
C92: UPS | D92: =HYPERLINK("https://convenzioni.converge.it/docs/ts3_datasheet/RPMM_UPS.pdf","i") -> i
E93: =VLOOKUP($C93,TS3L1_UPS,13,FALSE) ->  | F93: =VLOOKUP($C93,TS3L1_UPS,7,FALSE) ->  | J93: =VLOOKUP($C93,TS3L1_UPS,10,FALSE) -> 0 | K93: =VLOOKUP($C93,TS3L1_UPS,11,FALSE) -> 0 | L93: =VLOOKUP($C93,TS3L1_ALL,12,FALSE) -> 
C95: Kit Graphical User Interface | D95: =HYPERLINK("https://convenzioni.converge.it/docs/ts3_datasheet/Dell_E1916H.pdf","i") -> i
E96: =VLOOKUP($C96,TS3L1_GUI,13,FALSE) ->  | F96: =VLOOKUP($C96,TS3L1_GUI,7,FALSE) ->  | J96: =VLOOKUP($C96,TS3L1_GUI,10,FALSE) -> 0 | K96: =VLOOKUP($C96,TS3L1_GUI,11,FALSE) -> 0 | L96: =VLOOKUP($C96,TS3L1_ALL,12,FALSE) -> 

Sheet Lotto1_T340_2
E1: Convenzione | F1: =SUM(J8:J96)*F5 -> 0
E2: 0.2 | F2: =SUM(K8:K96)*F5 -> 0
E3: Totale | F3: =SUM(F1:F2) -> 0
C5: POWEREDGE T340 Consulta la Guida alla Convenzione ---> | D5: =HYPERLINK("https://convenzioni.converge.it/docs/L1GuidaAllaConvenzioneTecnologieServer3.pdf","&") -> & | E5: Quantità Server | H5: =Riepilogo!G8 -> Version 2.8
C7: Base | D7: =HYPERLINK("https://convenzioni.converge.it/docs/ts3_datasheet/dell-emc-poweredge-t340-spec-sheet.pdf","i") -> i
C8: PowerEdge T340 Server | E8: =IF($F$5>0,"TS3L1-SRV","") ->  | F8: =IF($F$5>0,1,"") ->  | J8: 1399 | L8: =VLOOKUP($C8,TS3L1_ALL,12,FALSE) -> L1N01
C10: Chassis Configuration | D10: =HYPERLINK("https://dellservervr.dell.com/poweredge-t340/","i") -> i
C11: 3.5" Chassis up to 4 Hot Plug Hard Drives and Embedded SATA
C13: Trusted Platform Module (TPM)
C14: Trusted Platform Module 2.0
C16: Processor | D16: =HYPERLINK("https://ark.intel.com/content/www/it/it/ark/products/191040/intel-xeon-e-2236-processor-12m-cache-3-40-ghz.html","i") -> i
C17: Intel® Xeon® E-2236 3.4GHz, 12M cache, 6C/12T, turbo (80W)
C19: Memory Capacity
C20: 16GB | E20: =VLOOKUP($C$20,TS3L1_RAM,13,FALSE) ->  | F20: =VLOOKUP($C$20,TS3L1_RAM,7,FALSE) -> 0 | J20: =VLOOKUP($C$20,TS3L1_RAM,10,FALSE) -> 0 | L20: =VLOOKUP($C20,TS3L1_ALL,12,FALSE) -> 
C22: Operating System
C23: No Operating System | E23: =VLOOKUP($C$23,TS3L1_OS,13,FALSE) ->  | F23: =VLOOKUP($C$23,TS3L1_OS,7,FALSE) ->  | J23: =VLOOKUP($C$23,TS3L1_OS,10,FALSE) -> 0 | L23: =VLOOKUP($C23,TS3L1_ALL,12,FALSE) -> 
C25: Boot Optimized Storage Cards | D25: =HYPERLINK("https://convenzioni.converge.it/docs/ts3_datasheet/DELL_BOSS.pdf","i") -> i
C26: BOSS controller card + with 2 M.2 Sticks 480GB (RAID1),FH | H26: Configurazione RAID e/o NOTE
H27: Specificare la configurazione RAID per l'installazione del Sistema Operativo, se richiesto. e/o inserire eventuali note.
C28: Hard Drives Bay 1
E29: =VLOOKUP($C29,TS3L1_HDD,13,FALSE) ->  | F29: =VLOOKUP($C29,TS3L1_HDD,7,FALSE) ->  | J29: =VLOOKUP($C29,TS3L1_HDD,10,FALSE) -> 0 | K29: =VLOOKUP($C29,TS3L1_HDD,11,FALSE) -> 0 | L29: =VLOOKUP($C29,TS3L1_ALL,12,FALSE) -> 
C31: Hard Drives Bay 2
E32: =VLOOKUP($C32,TS3L1_HDD,13,FALSE) ->  | F32: =VLOOKUP($C32,TS3L1_HDD,7,FALSE) ->  | J32: =VLOOKUP($C32,TS3L1_HDD,10,FALSE) -> 0 | K32: =VLOOKUP($C32,TS3L1_HDD,11,FALSE) -> 0 | L32: =VLOOKUP($C32,TS3L1_ALL,12,FALSE) -> 
C34: Hard Drives Bay 3
E35: =VLOOKUP($C35,TS3L1_HDD,13,FALSE) ->  | F35: =VLOOKUP($C35,TS3L1_HDD,7,FALSE) ->  | J35: =VLOOKUP($C35,TS3L1_HDD,10,FALSE) -> 0 | K35: =VLOOKUP($C35,TS3L1_HDD,11,FALSE) -> 0 | L35: =VLOOKUP($C35,TS3L1_ALL,12,FALSE) -> 
C37: Hard Drives Bay 4
E38: =VLOOKUP($C38,TS3L1_HDD,13,FALSE) ->  | F38: =VLOOKUP($C38,TS3L1_HDD,7,FALSE) ->  | J38: =VLOOKUP($C38,TS3L1_HDD,10,FALSE) -> 0 | K38: =VLOOKUP($C38,TS3L1_HDD,11,FALSE) -> 0 | L38: =VLOOKUP($C38,TS3L1_ALL,12,FALSE) -> 
C40: Power Supply
C41: Single, Hot-plug Power Supply 1+0, 495W | E41: =VLOOKUP($C41,TS3L1_PSU,13,FALSE) ->  | F41: =VLOOKUP($C41,TS3L1_PSU,7,FALSE) ->  | J41: =VLOOKUP($C41,TS3L1_PSU,10,FALSE) -> 0 | L41: =IF((M41+M80+M83)>0,"L1N18",0) -> 0 | M41: =IF(Q41="",0,1) -> 0 | N41: =(M41+M80+M83)/(M41+M80+M83) ->  | O41: =VLOOKUP($C41,TS3L1_PSU,11,FALSE) -> 0 | P41: =N42/N41 ->  | Q41: =VLOOKUP($C41,TS3L1_ALL,12,FALSE) -> 
K42: =IFERROR(N42,0) -> 0 | L42: =IF(Q41="L1N18","TS3L12PSU","TS3L11PSU") -> TS3L11PSU | N42: =(O41+O80+O83)/(M41+M80+M83) -> 
C43: Embedded Systems Management | D43: =HYPERLINK("https://convenzioni.converge.it/docs/ts3_datasheet/idrac-spec-sheet.pdf","i") -> i
C44: iDRAC9,Enterprise
C46: Network Cards
C47: On-Board Broadcom 5720 Dual Port 1Gb LOM
C49: PCI Slot 1 x8 PCIe Gen3 for FH/HL (x8 lanes)
C50: BOSS controller card + with 2 M.2 Sticks 480GB (RAID 1),FH | E50: =VLOOKUP($C50,TS3L1_PCI1,13,FALSE) ->  | F50: =VLOOKUP($C50,TS3L1_PCI1,7,FALSE) ->  | J50: =VLOOKUP($C50,TS3L1_PCI1,10,FALSE) -> 0 | K50: =VLOOKUP($C50,TS3L1_PCI1,11,FALSE) -> 0 | L50: =VLOOKUP($C50,TS3L1_ALL,12,FALSE) -> 
C52: PCI Slot 2 x16 PCIe Gen3 for FH/HL (x8 lanes)
E53: =VLOOKUP($C53,TS3L1_PCI2,13,FALSE) ->  | F53: =VLOOKUP($C53,TS3L1_PCI2,7,FALSE) ->  | J53: =VLOOKUP($C53,TS3L1_PCI2,10,FALSE) -> 0 | K53: =VLOOKUP($C53,TS3L1_PCI2,11,FALSE) -> 0 | L53: =VLOOKUP($C53,TS3L1_ALL,12,FALSE) -> 
C55: PCI Slot 3 x1 PCIe Gen3 for FH/HL (x1 lanes)
E56: =VLOOKUP($C56,TS3L1_PCI3,13,FALSE) ->  | F56: =VLOOKUP($C56,TS3L1_PCI3,7,FALSE) ->  | J56: =VLOOKUP($C56,TS3L1_PCI3,10,FALSE) -> 0 | K56: =VLOOKUP($C56,TS3L1_PCI3,11,FALSE) -> 0 | L56: =VLOOKUP($C56,TS3L1_ALL,12,FALSE) -> 
C58: PCI Slot 4 x8 PCIe Gen3 for FH/HL (x4 lanes)
E59: =VLOOKUP($C59,TS3L1_PCI4,13,FALSE) ->  | F59: =VLOOKUP($C59,TS3L1_PCI4,7,FALSE) ->  | J59: =VLOOKUP($C59,TS3L1_PCI4,10,FALSE) -> 0 | K59: =VLOOKUP($C59,TS3L1_PCI4,11,FALSE) -> 0 | L59: =VLOOKUP($C59,TS3L1_ALL,12,FALSE) -> 
C61: SFP+ Transceivers | F61: Quantità
C62: SFP+ SR Optic for all SFP+ ports | E62: =IF(K62>0,VLOOKUP($C62,TS3L1_ALL,13,FALSE),"") ->  | K62: =VLOOKUP($C62,TS3L1_ALL,11,FALSE)*F62 -> 0 | L62: =VLOOKUP($C62,TS3L1_ALL,12,FALSE) -> L1N34
C64: SFP+ Direct Attach Cables (Twinax) | F64: Quantità
C65: Dell Networking, Cable, SFP+ to SFP+, 10GbE, Copper Twinax Direct Attach Cable, 1 Meter | E65: =IF(K65>0,VLOOKUP($C65,TS3L1_ALL,13,FALSE),"") ->  | K65: =VLOOKUP($C65,TS3L1_ALL,11,FALSE)*F65 -> 0 | L65: =VLOOKUP($C65,TS3L1_ALL,12,FALSE) -> L1N35
C66: Dell Networking, Cable, SFP+ to SFP+, 10GbE, Copper Twinax Direct Attach Cable, 3 Meter | E66: =IF(K66>0,VLOOKUP($C66,TS3L1_ALL,13,FALSE),"") ->  | K66: =VLOOKUP($C66,TS3L1_ALL,11,FALSE)*F66 -> 0 | L66: =VLOOKUP($C66,TS3L1_ALL,12,FALSE) -> L1N36
C67: Dell Networking, Cable, SFP+ to SFP+, 10GbE, Copper Twinax Direct Attach Cable, 5 Meter | E67: =IF(K67>0,VLOOKUP($C67,TS3L1_ALL,13,FALSE),"") ->  | K67: =VLOOKUP($C67,TS3L1_ALL,11,FALSE)*F67 -> 0 | L67: =VLOOKUP($C67,TS3L1_ALL,12,FALSE) -> L1N37
C69: RJ45 Cables
C70: cavo “patch” di 3 mt RJ45 certificato per gigabit ethernet | E70: =IF(K70>0,VLOOKUP($C70,ConfigurationTS3L1!A58:M100,13,FALSE),"") -> TS3L1-RJ453M | F70: 3 | J70: 0 | K70: =IF(F70>0,(F70)*ConfigurationTS3L1!K58,0) -> 9 | L70: =VLOOKUP($C70,TS3L1_ALL,12,FALSE) -> L1N26
C72: SAS Cables | F72: Quantità
C73: 12Gb HD-Mini to HD-Mini SAS Cable, 2M | E73: =IF(K73>0,VLOOKUP($C73,TS3L1_ALL,13,FALSE),"") ->  | K73: =VLOOKUP($C73,TS3L1_ALL,11,FALSE)*F73 -> 0 | L73: =VLOOKUP($C73,TS3L1_ALL,12,FALSE) -> L1N29
C74: 12Gb HD-Mini to HD-Mini SAS Cable, 6M | E74: =IF(K74>0,VLOOKUP($C74,TS3L1_ALL,13,FALSE),"") ->  | K74: =VLOOKUP($C74,TS3L1_ALL,11,FALSE)*F74 -> 0 | L74: =VLOOKUP($C74,TS3L1_ALL,12,FALSE) -> L1N30
C75: 12Gb HD-Mini SAS cable, 0.5m | E75: =IF(K75>0,VLOOKUP($C75,TS3L1_ALL,13,FALSE),"") ->  | K75: =VLOOKUP($C75,TS3L1_ALL,11,FALSE)*F75 -> 0 | L75: =VLOOKUP($C75,TS3L1_ALL,12,FALSE) -> L1N31
C76: 12Gb HD-Mini SAS cable, 2m | E76: =IF(K76>0,VLOOKUP($C76,TS3L1_ALL,13,FALSE),"") ->  | K76: =VLOOKUP($C76,TS3L1_ALL,11,FALSE)*F76 -> 0 | L76: =VLOOKUP($C76,TS3L1_ALL,12,FALSE) -> L1N32
C77: 12Gb Mini-SAS HD to Mini-SAS HD Cable, 4m | E77: =IF(K77>0,VLOOKUP($C77,TS3L1_ALL,13,FALSE),"") ->  | K77: =VLOOKUP($C77,TS3L1_ALL,11,FALSE)*F77 -> 0 | L77: =VLOOKUP($C77,TS3L1_ALL,12,FALSE) -> L1N33
C79: Bezel
C80: No Bezel | E80: =VLOOKUP($C80,TS3L1_BEZEL,13,FALSE) ->  | F80: =VLOOKUP($C80,TS3L1_BEZEL,7,FALSE) ->  | J80: =VLOOKUP($C80,TS3L1_BEZEL,10,FALSE) -> 0 | M80: =IF(Q80="",0,1) -> 0 | O80: =VLOOKUP($C80,TS3L1_BEZEL,11,FALSE) -> 0 | Q80: =VLOOKUP($C80,TS3L1_ALL,12,FALSE) -> 
C82: Internal Optical Drive
C83: No Internal Optical Drive | E83: =VLOOKUP($C83,TS3L1_DVD,13,FALSE) ->  | F83: =VLOOKUP($C83,TS3L1_DVD,7,FALSE) ->  | J83: =VLOOKUP($C83,TS3L1_DVD,10,FALSE) -> 0 | M83: =IF(Q83="",0,1) -> 0 | O83: =VLOOKUP($C83,TS3L1_DVD,11,FALSE) -> 0 | Q83: =VLOOKUP($C83,TS3L1_ALL,12,FALSE) -> 
C85: Warranty | D85: =HYPERLINK("https://convenzioni.converge.it/docs/ts3_datasheet/TS3warranty.pdf","i") -> i
C86: Manutenzione in garanzia (36 mesi) | E86: =VLOOKUP($C86,TS3L1_WARRANTY,13,FALSE) ->  | F86: =VLOOKUP($C86,TS3L1_WARRANTY,7,FALSE) ->  | J86: =VLOOKUP($C86,TS3L1_WARRANTY,10,FALSE) -> 0 | K86: =VLOOKUP($C86,TS3L1_WARRANTY,11,FALSE) -> 0 | L86: =VLOOKUP($C86,TS3L1_ALL,12,FALSE) -> 
C88: Hard Disk Retention | D88: =HYPERLINK("https://convenzioni.converge.it/docs/ts3_datasheet/DELL_HDD_KYHD.pdf","i") -> i
E89: =IFERROR($N$89,VLOOKUP($C89,TS3L1_ALL,13,FALSE)) ->  | F89: =IF(C89="","",1) ->  | J89: =IFERROR($O$89,VLOOKUP($C89,TS3L1_ALL,10,FALSE)) -> 0 | K89: =IFERROR($P$89,VLOOKUP($C89,TS3L1_ALL,11,FALSE)) -> 0 | L89: =IFERROR($Q$89,VLOOKUP($C89,TS3L1_ALL,12,FALSE)) ->  | N89: =IF($F$86+$F$89=2,VLOOKUP("Hard Disk Retention (60 mesi)",TS3L1_ALL,13,FALSE),VLOOKUP($C89,TS3L1_ALL,13,FALSE)) ->  | O89: =IF($F$86+$F$89=2,VLOOKUP("Hard Disk Retention (60 mesi)",TS3L1_ALL,10,FALSE),VLOOKUP($C89,TS3L1_ALL,10,FALSE)) ->  | P89: =IF($F$86+$F$89=2,VLOOKUP("Hard Disk Retention (60 mesi)",TS3L1_ALL,11,FALSE),VLOOKUP($C89,TS3L1_ALL,11,FALSE)) ->  | Q89: =IF($F$86+$F$89=2,VLOOKUP("Hard Disk Retention (60 mesi)",TS3L1_ALL,12,FALSE),VLOOKUP($C89,TS3L1_ALL,12,FALSE)) -> 
C92: UPS | D92: =HYPERLINK("https://convenzioni.converge.it/docs/ts3_datasheet/RPMM_UPS.pdf","i") -> i
E93: =VLOOKUP($C93,TS3L1_UPS,13,FALSE) ->  | F93: =VLOOKUP($C93,TS3L1_UPS,7,FALSE) ->  | J93: =VLOOKUP($C93,TS3L1_UPS,10,FALSE) -> 0 | K93: =VLOOKUP($C93,TS3L1_UPS,11,FALSE) -> 0 | L93: =VLOOKUP($C93,TS3L1_ALL,12,FALSE) -> 
C95: Kit Graphical User Interface | D95: =HYPERLINK("https://convenzioni.converge.it/docs/ts3_datasheet/Dell_E1916H.pdf","i") -> i
E96: =VLOOKUP($C96,TS3L1_GUI,13,FALSE) ->  | F96: =VLOOKUP($C96,TS3L1_GUI,7,FALSE) ->  | J96: =VLOOKUP($C96,TS3L1_GUI,10,FALSE) -> 0 | K96: =VLOOKUP($C96,TS3L1_GUI,11,FALSE) -> 0 | L96: =VLOOKUP($C96,TS3L1_ALL,12,FALSE) -> 

Sheet Lotto1_T340_3
E1: Convenzione | F1: =SUM(J8:J96)*F5 -> 0
E2: 0.2 | F2: =SUM(K8:K96)*F5 -> 0
E3: Totale | F3: =SUM(F1:F2) -> 0
C5: POWEREDGE T340 Consulta la Guida alla Convenzione ---> | D5: =HYPERLINK("https://convenzioni.converge.it/docs/L1GuidaAllaConvenzioneTecnologieServer3.pdf","&") -> & | E5: Quantità Server | H5: =Riepilogo!G8 -> Version 2.8
C7: Base | D7: =HYPERLINK("https://convenzioni.converge.it/docs/ts3_datasheet/dell-emc-poweredge-t340-spec-sheet.pdf","i") -> i
C8: PowerEdge T340 Server | E8: =IF($F$5>0,"TS3L1-SRV","") ->  | F8: =IF($F$5>0,1,"") ->  | J8: 1399 | L8: =VLOOKUP($C8,TS3L1_ALL,12,FALSE) -> L1N01
C10: Chassis Configuration | D10: =HYPERLINK("https://dellservervr.dell.com/poweredge-t340/","i") -> i
C11: 3.5" Chassis up to 4 Hot Plug Hard Drives and Embedded SATA
C13: Trusted Platform Module (TPM)
C14: Trusted Platform Module 2.0
C16: Processor | D16: =HYPERLINK("https://ark.intel.com/content/www/it/it/ark/products/191040/intel-xeon-e-2236-processor-12m-cache-3-40-ghz.html","i") -> i
C17: Intel® Xeon® E-2236 3.4GHz, 12M cache, 6C/12T, turbo (80W)
C19: Memory Capacity
C20: 16GB | E20: =VLOOKUP($C$20,TS3L1_RAM,13,FALSE) ->  | F20: =VLOOKUP($C$20,TS3L1_RAM,7,FALSE) -> 0 | J20: =VLOOKUP($C$20,TS3L1_RAM,10,FALSE) -> 0 | L20: =VLOOKUP($C20,TS3L1_ALL,12,FALSE) -> 
C22: Operating System
C23: No Operating System | E23: =VLOOKUP($C$23,TS3L1_OS,13,FALSE) ->  | F23: =VLOOKUP($C$23,TS3L1_OS,7,FALSE) ->  | J23: =VLOOKUP($C$23,TS3L1_OS,10,FALSE) -> 0 | L23: =VLOOKUP($C23,TS3L1_ALL,12,FALSE) -> 
C25: Boot Optimized Storage Cards | D25: =HYPERLINK("https://convenzioni.converge.it/docs/ts3_datasheet/DELL_BOSS.pdf","i") -> i
C26: BOSS controller card + with 2 M.2 Sticks 480GB (RAID1),FH | H26: Configurazione RAID e/o NOTE
H27: Specificare la configurazione RAID per l'installazione del Sistema Operativo, se richiesto. e/o inserire eventuali note.
C28: Hard Drives Bay 1
E29: =VLOOKUP($C29,TS3L1_HDD,13,FALSE) ->  | F29: =VLOOKUP($C29,TS3L1_HDD,7,FALSE) ->  | J29: =VLOOKUP($C29,TS3L1_HDD,10,FALSE) -> 0 | K29: =VLOOKUP($C29,TS3L1_HDD,11,FALSE) -> 0 | L29: =VLOOKUP($C29,TS3L1_ALL,12,FALSE) -> 
C31: Hard Drives Bay 2
E32: =VLOOKUP($C32,TS3L1_HDD,13,FALSE) ->  | F32: =VLOOKUP($C32,TS3L1_HDD,7,FALSE) ->  | J32: =VLOOKUP($C32,TS3L1_HDD,10,FALSE) -> 0 | K32: =VLOOKUP($C32,TS3L1_HDD,11,FALSE) -> 0 | L32: =VLOOKUP($C32,TS3L1_ALL,12,FALSE) -> 
C34: Hard Drives Bay 3
E35: =VLOOKUP($C35,TS3L1_HDD,13,FALSE) ->  | F35: =VLOOKUP($C35,TS3L1_HDD,7,FALSE) ->  | J35: =VLOOKUP($C35,TS3L1_HDD,10,FALSE) -> 0 | K35: =VLOOKUP($C35,TS3L1_HDD,11,FALSE) -> 0 | L35: =VLOOKUP($C35,TS3L1_ALL,12,FALSE) -> 
C37: Hard Drives Bay 4
E38: =VLOOKUP($C38,TS3L1_HDD,13,FALSE) ->  | F38: =VLOOKUP($C38,TS3L1_HDD,7,FALSE) ->  | J38: =VLOOKUP($C38,TS3L1_HDD,10,FALSE) -> 0 | K38: =VLOOKUP($C38,TS3L1_HDD,11,FALSE) -> 0 | L38: =VLOOKUP($C38,TS3L1_ALL,12,FALSE) -> 
C40: Power Supply
C41: Single, Hot-plug Power Supply 1+0, 495W | E41: =VLOOKUP($C41,TS3L1_PSU,13,FALSE) ->  | F41: =VLOOKUP($C41,TS3L1_PSU,7,FALSE) ->  | J41: =VLOOKUP($C41,TS3L1_PSU,10,FALSE) -> 0 | L41: =IF((M41+M80+M83)>0,"L1N18",0) -> 0 | M41: =IF(Q41="",0,1) -> 0 | N41: =(M41+M80+M83)/(M41+M80+M83) ->  | O41: =VLOOKUP($C41,TS3L1_PSU,11,FALSE) -> 0 | P41: =N42/N41 ->  | Q41: =VLOOKUP($C41,TS3L1_ALL,12,FALSE) -> 
K42: =IFERROR(N42,0) -> 0 | L42: =IF(Q41="L1N18","TS3L12PSU","TS3L11PSU") -> TS3L11PSU | N42: =(O41+O80+O83)/(M41+M80+M83) -> 
C43: Embedded Systems Management | D43: =HYPERLINK("https://convenzioni.converge.it/docs/ts3_datasheet/idrac-spec-sheet.pdf","i") -> i
C44: iDRAC9,Enterprise
C46: Network Cards
C47: On-Board Broadcom 5720 Dual Port 1Gb LOM
C49: PCI Slot 1 x8 PCIe Gen3 for FH/HL (x8 lanes)
C50: BOSS controller card + with 2 M.2 Sticks 480GB (RAID 1),FH | E50: =VLOOKUP($C50,TS3L1_PCI1,13,FALSE) ->  | F50: =VLOOKUP($C50,TS3L1_PCI1,7,FALSE) ->  | J50: =VLOOKUP($C50,TS3L1_PCI1,10,FALSE) -> 0 | K50: =VLOOKUP($C50,TS3L1_PCI1,11,FALSE) -> 0 | L50: =VLOOKUP($C50,TS3L1_ALL,12,FALSE) -> 
C52: PCI Slot 2 x16 PCIe Gen3 for FH/HL (x8 lanes)
E53: =VLOOKUP($C53,TS3L1_PCI2,13,FALSE) ->  | F53: =VLOOKUP($C53,TS3L1_PCI2,7,FALSE) ->  | J53: =VLOOKUP($C53,TS3L1_PCI2,10,FALSE) -> 0 | K53: =VLOOKUP($C53,TS3L1_PCI2,11,FALSE) -> 0 | L53: =VLOOKUP($C53,TS3L1_ALL,12,FALSE) -> 
C55: PCI Slot 3 x1 PCIe Gen3 for FH/HL (x1 lanes)
E56: =VLOOKUP($C56,TS3L1_PCI3,13,FALSE) ->  | F56: =VLOOKUP($C56,TS3L1_PCI3,7,FALSE) ->  | J56: =VLOOKUP($C56,TS3L1_PCI3,10,FALSE) -> 0 | K56: =VLOOKUP($C56,TS3L1_PCI3,11,FALSE) -> 0 | L56: =VLOOKUP($C56,TS3L1_ALL,12,FALSE) -> 
C58: PCI Slot 4 x8 PCIe Gen3 for FH/HL (x4 lanes)
E59: =VLOOKUP($C59,TS3L1_PCI4,13,FALSE) ->  | F59: =VLOOKUP($C59,TS3L1_PCI4,7,FALSE) ->  | J59: =VLOOKUP($C59,TS3L1_PCI4,10,FALSE) -> 0 | K59: =VLOOKUP($C59,TS3L1_PCI4,11,FALSE) -> 0 | L59: =VLOOKUP($C59,TS3L1_ALL,12,FALSE) -> 
C61: SFP+ Transceivers | F61: Quantità
C62: SFP+ SR Optic for all SFP+ ports | E62: =IF(K62>0,VLOOKUP($C62,TS3L1_ALL,13,FALSE),"") ->  | K62: =VLOOKUP($C62,TS3L1_ALL,11,FALSE)*F62 -> 0 | L62: =VLOOKUP($C62,TS3L1_ALL,12,FALSE) -> L1N34
C64: SFP+ Direct Attach Cables (Twinax) | F64: Quantità
C65: Dell Networking, Cable, SFP+ to SFP+, 10GbE, Copper Twinax Direct Attach Cable, 1 Meter | E65: =IF(K65>0,VLOOKUP($C65,TS3L1_ALL,13,FALSE),"") ->  | K65: =VLOOKUP($C65,TS3L1_ALL,11,FALSE)*F65 -> 0 | L65: =VLOOKUP($C65,TS3L1_ALL,12,FALSE) -> L1N35
C66: Dell Networking, Cable, SFP+ to SFP+, 10GbE, Copper Twinax Direct Attach Cable, 3 Meter | E66: =IF(K66>0,VLOOKUP($C66,TS3L1_ALL,13,FALSE),"") ->  | K66: =VLOOKUP($C66,TS3L1_ALL,11,FALSE)*F66 -> 0 | L66: =VLOOKUP($C66,TS3L1_ALL,12,FALSE) -> L1N36
C67: Dell Networking, Cable, SFP+ to SFP+, 10GbE, Copper Twinax Direct Attach Cable, 5 Meter | E67: =IF(K67>0,VLOOKUP($C67,TS3L1_ALL,13,FALSE),"") ->  | K67: =VLOOKUP($C67,TS3L1_ALL,11,FALSE)*F67 -> 0 | L67: =VLOOKUP($C67,TS3L1_ALL,12,FALSE) -> L1N37
C69: RJ45 Cables
C70: cavo “patch” di 3 mt RJ45 certificato per gigabit ethernet | E70: =IF(K70>0,VLOOKUP($C70,ConfigurationTS3L1!A58:M58,13,FALSE),"") -> TS3L1-RJ453M | F70: 3 | J70: 0 | K70: =IF(F70>0,(F70)*ConfigurationTS3L1!K58,0) -> 9 | L70: =VLOOKUP($C70,TS3L1_ALL,12,FALSE) -> L1N26
C72: SAS Cables | F72: Quantità
C73: 12Gb HD-Mini to HD-Mini SAS Cable, 2M | E73: =IF(K73>0,VLOOKUP($C73,TS3L1_ALL,13,FALSE),"") ->  | K73: =VLOOKUP($C73,TS3L1_ALL,11,FALSE)*F73 -> 0 | L73: =VLOOKUP($C73,TS3L1_ALL,12,FALSE) -> L1N29
C74: 12Gb HD-Mini to HD-Mini SAS Cable, 6M | E74: =IF(K74>0,VLOOKUP($C74,TS3L1_ALL,13,FALSE),"") ->  | K74: =VLOOKUP($C74,TS3L1_ALL,11,FALSE)*F74 -> 0 | L74: =VLOOKUP($C74,TS3L1_ALL,12,FALSE) -> L1N30
C75: 12Gb HD-Mini SAS cable, 0.5m | E75: =IF(K75>0,VLOOKUP($C75,TS3L1_ALL,13,FALSE),"") ->  | K75: =VLOOKUP($C75,TS3L1_ALL,11,FALSE)*F75 -> 0 | L75: =VLOOKUP($C75,TS3L1_ALL,12,FALSE) -> L1N31
C76: 12Gb HD-Mini SAS cable, 2m | E76: =IF(K76>0,VLOOKUP($C76,TS3L1_ALL,13,FALSE),"") ->  | K76: =VLOOKUP($C76,TS3L1_ALL,11,FALSE)*F76 -> 0 | L76: =VLOOKUP($C76,TS3L1_ALL,12,FALSE) -> L1N32
C77: 12Gb Mini-SAS HD to Mini-SAS HD Cable, 4m | E77: =IF(K77>0,VLOOKUP($C77,TS3L1_ALL,13,FALSE),"") ->  | K77: =VLOOKUP($C77,TS3L1_ALL,11,FALSE)*F77 -> 0 | L77: =VLOOKUP($C77,TS3L1_ALL,12,FALSE) -> L1N33
C79: Bezel
C80: No Bezel | E80: =VLOOKUP($C80,TS3L1_BEZEL,13,FALSE) ->  | J80: =VLOOKUP($C80,TS3L1_BEZEL,10,FALSE) -> 0 | M80: =IF(Q80="",0,1) -> 0 | O80: =VLOOKUP($C80,TS3L1_BEZEL,11,FALSE) -> 0 | Q80: =VLOOKUP($C80,TS3L1_ALL,12,FALSE) -> 
C82: Internal Optical Drive
C83: No Internal Optical Drive | E83: =VLOOKUP($C83,TS3L1_DVD,13,FALSE) ->  | F83: =VLOOKUP($C83,TS3L1_DVD,7,FALSE) ->  | J83: =VLOOKUP($C83,TS3L1_DVD,10,FALSE) -> 0 | M83: =IF(Q83="",0,1) -> 0 | O83: =VLOOKUP($C83,TS3L1_DVD,11,FALSE) -> 0 | Q83: =VLOOKUP($C83,TS3L1_ALL,12,FALSE) -> 
C85: Warranty | D85: =HYPERLINK("https://convenzioni.converge.it/docs/ts3_datasheet/TS3warranty.pdf","i") -> i
C86: Manutenzione in garanzia (36 mesi) | E86: =VLOOKUP($C86,TS3L1_WARRANTY,13,FALSE) ->  | F86: =VLOOKUP($C86,TS3L1_WARRANTY,7,FALSE) ->  | J86: =VLOOKUP($C86,TS3L1_WARRANTY,10,FALSE) -> 0 | K86: =VLOOKUP($C86,TS3L1_WARRANTY,11,FALSE) -> 0 | L86: =VLOOKUP($C86,TS3L1_ALL,12,FALSE) -> 
C88: Hard Disk Retention | D88: =HYPERLINK("https://convenzioni.converge.it/docs/ts3_datasheet/DELL_HDD_KYHD.pdf","i") -> i
E89: =IFERROR($N$89,VLOOKUP($C89,TS3L1_ALL,13,FALSE)) ->  | F89: =IF(C89="","",1) ->  | J89: =IFERROR($O$89,VLOOKUP($C89,TS3L1_ALL,10,FALSE)) -> 0 | K89: =IFERROR($P$89,VLOOKUP($C89,TS3L1_ALL,11,FALSE)) -> 0 | L89: =IFERROR($Q$89,VLOOKUP($C89,TS3L1_ALL,12,FALSE)) ->  | N89: =IF($F$86+$F$89=2,VLOOKUP("Hard Disk Retention (60 mesi)",TS3L1_ALL,13,FALSE),VLOOKUP($C89,TS3L1_ALL,13,FALSE)) ->  | O89: =IF($F$86+$F$89=2,VLOOKUP("Hard Disk Retention (60 mesi)",TS3L1_ALL,10,FALSE),VLOOKUP($C89,TS3L1_ALL,10,FALSE)) ->  | P89: =IF($F$86+$F$89=2,VLOOKUP("Hard Disk Retention (60 mesi)",TS3L1_ALL,11,FALSE),VLOOKUP($C89,TS3L1_ALL,11,FALSE)) ->  | Q89: =IF($F$86+$F$89=2,VLOOKUP("Hard Disk Retention (60 mesi)",TS3L1_ALL,12,FALSE),VLOOKUP($C89,TS3L1_ALL,12,FALSE)) -> 
C92: UPS | D92: =HYPERLINK("https://convenzioni.converge.it/docs/ts3_datasheet/RPMM_UPS.pdf","i") -> i
E93: =VLOOKUP($C93,TS3L1_UPS,13,FALSE) ->  | F93: =VLOOKUP($C93,TS3L1_UPS,7,FALSE) ->  | J93: =VLOOKUP($C93,TS3L1_UPS,10,FALSE) -> 0 | K93: =VLOOKUP($C93,TS3L1_UPS,11,FALSE) -> 0 | L93: =VLOOKUP($C93,TS3L1_ALL,12,FALSE) -> 
C95: Kit Graphical User Interface | D95: =HYPERLINK("https://convenzioni.converge.it/docs/ts3_datasheet/Dell_E1916H.pdf","i") -> i
E96: =VLOOKUP($C96,TS3L1_GUI,13,FALSE) ->  | F96: =VLOOKUP($C96,TS3L1_GUI,7,FALSE) ->  | J96: =VLOOKUP($C96,TS3L1_GUI,10,FALSE) -> 0 | K96: =VLOOKUP($C96,TS3L1_GUI,11,FALSE) -> 0 | L96: =VLOOKUP($C96,TS3L1_ALL,12,FALSE) -> 

Sheet ConfigurationTS3L1 (hidden)
B2: Module Name | C2: Option ID | D2: Option Name | E2: Option List Price | F2: SKUs | G2: Qty | H2: SKU Customer Kit | I2: Attributo | J2: Valore inserito | L2: N° | M2: Codice Convenzione
A3: PowerEdge T340 Server | D3: =VLOOKUP(L3,Tabella_prezzi!$A$3:$J$58,8,FALSE) -> DELL PowerEdge T340 Server | I3: =VLOOKUP(L3,Tabella_prezzi!$A$3:$J$58,3,FALSE) -> Server Tower mono-processore | J3: =VLOOKUP(L3,Tabella_prezzi!$A$3:$J$58,4,FALSE) -> 1399 | L3: L1N01 | M3: =VLOOKUP(L3,Tabella_prezzi!$A$3:$J$58,6,FALSE) -> TS3L1-SRV
A6: TS3L1_RAM
A7: 16GB | B7: Memory Capacity | C7: GYWO126 | D7: =D8 -> 16GB - 2Rx8 DDR4 UDIMM 2666MHz | F7: 370-AEKL | G7: 0 | H7: AA335286 | I7: ="" ->  | L7: ="" ->  | M7: ="" -> 
A8: 32GB | B8: Memory Capacity | C8: GYWO126 | D8: =VLOOKUP(L8,Tabella_prezzi!$A$3:$J$58,8,FALSE) -> 16GB - 2Rx8 DDR4 UDIMM 2666MHz | F8: 370-AEKL | G8: 1 | H8: =VLOOKUP(L8,Tabella_prezzi!$A$3:$J$58,9,FALSE) -> L1N02-OpzRAM16GB | I8: =VLOOKUP(L8,Tabella_prezzi!$A$3:$J$58,3,FALSE) -> OpzRAM16GB | J8: =VLOOKUP(L8,Tabella_prezzi!$A$3:$J$58,4,FALSE)*G8 -> 98 | L8: L1N02 | M8: =VLOOKUP(L8,Tabella_prezzi!$A$3:$J$58,6,FALSE) -> TS3L1-RAM16
A9: 48GB | B9: Memory Capacity | C9: GYWO126 | D9: =VLOOKUP(L9,Tabella_prezzi!$A$3:$J$58,8,FALSE) -> 16GB - 2Rx8 DDR4 UDIMM 2666MHz | F9: 370-AEKL | G9: 2 | H9: =VLOOKUP(L9,Tabella_prezzi!$A$3:$J$58,9,FALSE) -> L1N02-OpzRAM16GB | I9: =VLOOKUP(L9,Tabella_prezzi!$A$3:$J$58,3,FALSE) -> OpzRAM16GB | J9: =VLOOKUP(L9,Tabella_prezzi!$A$3:$J$58,4,FALSE)*G9 -> 196 | L9: L1N02 | M9: =VLOOKUP(L9,Tabella_prezzi!$A$3:$J$58,6,FALSE) -> TS3L1-RAM16
A10: 64GB | B10: Memory Capacity | C10: GYWO126 | D10: =VLOOKUP(L10,Tabella_prezzi!$A$3:$J$58,8,FALSE) -> 16GB - 2Rx8 DDR4 UDIMM 2666MHz | F10: 370-AEKL | G10: 3 | H10: =VLOOKUP(L10,Tabella_prezzi!$A$3:$J$58,9,FALSE) -> L1N02-OpzRAM16GB | I10: =VLOOKUP(L10,Tabella_prezzi!$A$3:$J$58,3,FALSE) -> OpzRAM16GB | J10: =VLOOKUP(L10,Tabella_prezzi!$A$3:$J$58,4,FALSE)*G10 -> 294 | L10: L1N02 | M10: =VLOOKUP(L10,Tabella_prezzi!$A$3:$J$58,6,FALSE) -> TS3L1-RAM16
A12: TS3L1_OS
A13: No Operating System | B13: Operating System | G13: ="" ->  | I13: ="" ->  | L13: ="" ->  | M13: ="" -> 
A14: [TS3L1-WINSRVESS] Windows Server® 2019 Essentials | B14: Operating System | C14: GQ5SW9I | D14: =VLOOKUP(L14,Tabella_prezzi!$A$3:$J$58,8,FALSE) -> Windows Server 2019,Essentials, ROK | F14: 634-BSFC | G14: 1 | H14: =VLOOKUP(L14,Tabella_prezzi!$A$3:$J$58,9,FALSE) -> L1N12-OpzWinServESS | I14: =VLOOKUP(L14,Tabella_prezzi!$A$3:$J$58,3,FALSE) -> OpzWinServESS | J14: =VLOOKUP(L14,Tabella_prezzi!$A$3:$J$58,4,FALSE) -> 256 | L14: L1N12 | M14: =VLOOKUP(L14,Tabella_prezzi!$A$3:$J$58,6,FALSE) -> TS3L1-WINSRVESS
A15: [TS3L1-LINUX] Ubuntu 18.04 LTS 64 Bit | B15: Operating System | D15: =VLOOKUP(L15,Tabella_prezzi!$A$3:$J$58,8,FALSE) -> Ubuntu 18.04 LTS 64 Bit | G15: 1 | I15: =VLOOKUP(L15,Tabella_prezzi!$A$3:$J$58,3,FALSE) -> OpzOpenSource | J15: =VLOOKUP(L15,Tabella_prezzi!$A$3:$J$58,4,FALSE) -> 49 | L15: L1N15 | M15: =VLOOKUP(L15,Tabella_prezzi!$A$3:$J$58,6,FALSE) -> TS3L1-LINUX
A17: TS3L1_HDD
A18: ="" ->  | G18: ="" ->  | I18: ="" ->  | L18: ="" ->  | M18: ="" -> 
A19: [TS3L1-HDD8TB] 8TB 7.2K RPM SATA 6Gbps Hot-plug Hard Drive | B19: Hard Drives | C19: 8T35HL | D19: =VLOOKUP(L19,Tabella_prezzi!$A$3:$J$58,8,FALSE) -> HDD 8TB 7.2K SATA 6Gbps 3.5in Hot-plug | F19: 400-AOJN | G19: 1 | H19: =VLOOKUP(L19,Tabella_prezzi!$A$3:$J$58,9,FALSE) -> L1N04-OpzHDD8TB | I19: =VLOOKUP(L19,Tabella_prezzi!$A$3:$J$58,3,FALSE) -> OpzHDD8TB | J19: =VLOOKUP(L19,Tabella_prezzi!$A$3:$J$58,4,FALSE) -> 285 | L19: L1N04 | M19: =VLOOKUP(L19,Tabella_prezzi!$A$3:$J$58,6,FALSE) -> TS3L1-HDD8TB
A20: [TS3L1-HDD4TB] 4TB 7.2K RPM SATA 6Gbps Hot-plug Hard Drive | B20: Hard Drives | C20: 5107763 | D20: =VLOOKUP(L20,Tabella_prezzi!$A$3:$J$58,8,FALSE) -> HDD 4TB 7.2K SATA 6Gbps 3.5in Hot-plug | F20: 400-ASNY | G20: 1 | H20: =VLOOKUP(L20,Tabella_prezzi!$A$3:$J$58,9,FALSE) -> L1N05-OpzHDD4TB | I20: =VLOOKUP(L20,Tabella_prezzi!$A$3:$J$58,3,FALSE) -> OpzHDD4TB | J20: =VLOOKUP(L20,Tabella_prezzi!$A$3:$J$58,4,FALSE) -> 194 | L20: L1N05 | M20: =VLOOKUP(L20,Tabella_prezzi!$A$3:$J$58,6,FALSE) -> TS3L1-HDD4TB
A21: [TS3L1-HDD2TB] 2TB 7.2K RPM SATA 6Gbps Hot-plug Hard Drive | B21: Hard Drives | C21: 5107836 | D21: =VLOOKUP(L21,Tabella_prezzi!$A$3:$J$58,8,FALSE) -> HDD 2TB 7.2K SATA 6Gbps 3.5in Hot-plug | F21: 400-ASNC | G21: 1 | H21: =VLOOKUP(L21,Tabella_prezzi!$A$3:$J$58,9,FALSE) -> L1N06-OpzHDD2TB | I21: =VLOOKUP(L21,Tabella_prezzi!$A$3:$J$58,3,FALSE) -> OpzHDD2TB | J21: =VLOOKUP(L21,Tabella_prezzi!$A$3:$J$58,4,FALSE) -> 148 | L21: L1N06 | M21: =VLOOKUP(L21,Tabella_prezzi!$A$3:$J$58,6,FALSE) -> TS3L1-HDD2TB
A22: [TS3L1-HDD1TB] 1TB 7.2K RPM SATA 6Gbps Hot-plug Hard Drive | B22: Hard Drives | C22: 5107834 | D22: =VLOOKUP(L22,Tabella_prezzi!$A$3:$J$58,8,FALSE) -> HDD 1TB 7.2K SATA 6Gbps 3.5in Hot-plug | F22: 400-ASMG | G22: 1 | H22: =VLOOKUP(L22,Tabella_prezzi!$A$3:$J$58,9,FALSE) -> L1N07-OpzHDD1TB | I22: =VLOOKUP(L22,Tabella_prezzi!$A$3:$J$58,3,FALSE) -> OpzHDD1TB | J22: =VLOOKUP(L22,Tabella_prezzi!$A$3:$J$58,4,FALSE) -> 80 | L22: L1N07 | M22: =VLOOKUP(L22,Tabella_prezzi!$A$3:$J$58,6,FALSE) -> TS3L1-HDD1TB
A23: [TS3L1-RI800GB] 960GB SSD SATA Read Intensive 6Gbps Hot-plug Hard Drive | B23: Hard Drives | C23: GCOWB60 | D23: =VLOOKUP(L23,Tabella_prezzi!$A$3:$J$58,8,FALSE) -> SSD 960GB SATA RI 6Gbps 2.5in in 3.5in Hybrid Carrier, 1 DWPD | F23: 400-AXRX | G23: 1 | H23: =VLOOKUP(L23,Tabella_prezzi!$A$3:$J$58,9,FALSE) -> L1N08-OpzSSD-RI800GB | I23: =VLOOKUP(L23,Tabella_prezzi!$A$3:$J$58,3,FALSE) -> OpzSSD-RI800GB | J23: =VLOOKUP(L23,Tabella_prezzi!$A$3:$J$58,4,FALSE) -> 216 | L23: L1N08 | M23: =VLOOKUP(L23,Tabella_prezzi!$A$3:$J$58,6,FALSE) -> TS3L1-RI800GB
A24: [TS3L1-RI400GB] 480GB SSD SATA Read Intensive 6Gbps Hot-plug Hard Drive | B24: Hard Drives | C24: GDAKNC1 | D24: =VLOOKUP(L24,Tabella_prezzi!$A$3:$J$58,8,FALSE) -> SSD 480GB SATA RI 6Gbps 2.5in in 3.5in Hybrid Carrier, 1 DWPD | F24: 400-BDOB | G24: 1 | H24: =VLOOKUP(L24,Tabella_prezzi!$A$3:$J$58,9,FALSE) -> L1N09-OpzSSD-RI400GB | I24: =VLOOKUP(L24,Tabella_prezzi!$A$3:$J$58,3,FALSE) -> OpzSSD-RI400GB | J24: =VLOOKUP(L24,Tabella_prezzi!$A$3:$J$58,4,FALSE) -> 160 | L24: L1N09 | M24: =VLOOKUP(L24,Tabella_prezzi!$A$3:$J$58,6,FALSE) -> TS3L1-RI400GB
A26: TS3L1_PSU
A27: Single, Hot-plug Power Supply 1+0, 495W | B27: Power Supply | C27: GBF3YIX | D27: Single, Hot-plug Power Supply 1+0, 495W | F27: 450-AHVN | G27: ="" ->  | I27: ="" ->  | K27: 0 | L27: ="" ->  | M27: ="" -> 
A28: -=-=-=-=-=-=-=-=-=-=-=-=-=-=-=-=-20%-=-=-=-=-=-=-=-=-=-=-=-=-=-=-=-=- | G28: ="" ->  | I28: ="" ->  | L28: ="" ->  | M28: ="" -> 
A29: [TS3L1-PSUDVDBZL] Dual, Hot-plug, Redundant Power Supply 1+1, 495W | B29: Power Supply | C29: GZ8351O | D29: =VLOOKUP(L29,Tabella_prezzi!$A$3:$J$58,8,FALSE) -> Kit per T340 composto da: Hot-plug Power Supply 495W, DVD+/-RW SATA interno, Security Bezel | F29: 450-AHVO | G29: 1 | H29: =VLOOKUP(L29,Tabella_prezzi!$A$3:$J$58,9,FALSE) -> TS3-OpzA20T340K | I29: =VLOOKUP(L29,Tabella_prezzi!$A$3:$J$58,3,FALSE) -> 0 | K29: =VLOOKUP(L29,Tabella_prezzi!$A$3:$J$58,4,FALSE) -> 230 | L29: L1N18 | M29: =VLOOKUP(L29,Tabella_prezzi!$A$3:$J$58,6,FALSE) -> TS3L1-PSUDVDBZL
A31: TS3L1_PCI1
A32: BOSS controller card + with 2 M.2 Sticks 480GB (RAID 1),FH | F32: 403-BCNL | G32: ="" ->  | I32: ="" ->  | L32: ="" ->  | M32: ="" -> 
A34: TS3L1_PCI2
A35: ="" ->  | G35: ="" ->  | I35: ="" ->  | L35: ="" ->  | M35: ="" -> 
A36: [TS3L1-LAN1] Broadcom 5720 Dual Port 1GbE BASE-T Adapter | B36: Additional Network Cards | C36: GI7RBKF | D36: =VLOOKUP(L36,Tabella_prezzi!$A$3:$J$58,8,FALSE) -> Scheda LAN 5720 DP 1Gb Full | F36: 540-BBCX | G36: 1 | H36: =VLOOKUP(L36,Tabella_prezzi!$A$3:$J$58,9,FALSE) -> L1N03-OpzGigabit | I36: =VLOOKUP(L36,Tabella_prezzi!$A$3:$J$58,3,FALSE) -> OpzGigabit | J36: =VLOOKUP(L36,Tabella_prezzi!$A$3:$J$58,4,FALSE) -> 25 | L36: L1N03 | M36: =VLOOKUP(L36,Tabella_prezzi!$A$3:$J$58,6,FALSE) -> TS3L1-LAN1
A37: -=-=-=-=-=-=-=-=-=-=-=-=-=-=-=-=-20%-=-=-=-=-=-=-=-=-=-=-=-=-=-=-=-=- | G37: ="" ->  | I37: ="" ->  | L37: ="" ->  | M37: ="" -> 
A38: [TS3L1-LAN1QP] Broadcom 5719 Quad Port 1GbE BASE-T Adapter | B38: Additional Network Cards | C38: GY5BHD0 | D38: =VLOOKUP(L38,Tabella_prezzi!$A$3:$J$58,8,FALSE) -> Hard Disk Retention 60 mesi | F38: 540-BBCW | G38: 1 | H38: =VLOOKUP(L38,Tabella_prezzi!$A$3:$J$58,9,FALSE) -> L1N19-OpzHDDRetention60 | I38: =VLOOKUP(L38,Tabella_prezzi!$A$3:$J$58,3,FALSE) -> OpzHDDRetention60 | K38: =VLOOKUP(L38,Tabella_prezzi!$A$3:$J$58,4,FALSE) -> 63 | L38: L1N19 | M38: =VLOOKUP(L38,Tabella_prezzi!$A$3:$J$58,6,FALSE) -> TS3L1-HDRTNTN60
A39: [TS3L1-I3502P] Intel Ethernet I350 Dual Port 1GbE BASE-T Adapter | B39: Additional Network Cards | C39: G3NO02S | D39: =VLOOKUP(L39,Tabella_prezzi!$A$3:$J$58,8,FALSE) -> 0 | F39: 540-BBDH | G39: 1 | H39: =VLOOKUP(L39,Tabella_prezzi!$A$3:$J$58,9,FALSE) -> 0 | I39: =VLOOKUP(L39,Tabella_prezzi!$A$3:$J$58,3,FALSE) -> 0 | K39: =VLOOKUP(L39,Tabella_prezzi!$A$3:$J$58,4,FALSE) -> 0 | L39: L1N20 | M39: =VLOOKUP(L39,Tabella_prezzi!$A$3:$J$58,6,FALSE) -> 0
A40: [TS3L1-I3504P] Intel Ethernet I350 Quad Port 1GbE BASE-T Adapter | B40: Additional Network Cards | C40: G3PC875 | D40: =VLOOKUP(L40,Tabella_prezzi!$A$3:$J$58,8,FALSE) -> 0 | F40: 540-BBDD | G40: 1 | H40: =VLOOKUP(L40,Tabella_prezzi!$A$3:$J$58,9,FALSE) -> 0 | I40: =VLOOKUP(L40,Tabella_prezzi!$A$3:$J$58,3,FALSE) -> 0 | K40: =VLOOKUP(L40,Tabella_prezzi!$A$3:$J$58,4,FALSE) -> 0 | L40: L1N21 | M40: =VLOOKUP(L40,Tabella_prezzi!$A$3:$J$58,6,FALSE) -> 0
A41: [TS3L1-X550] Intel X550 Dual Port 10GbE BASE-T Adapter | B41: Additional Network Cards | C41: G4JBP29 | D41: =VLOOKUP(L41,Tabella_prezzi!$A$3:$J$58,8,FALSE) -> 0 | F41: 540-BBRO | G41: 1 | H41: =VLOOKUP(L41,Tabella_prezzi!$A$3:$J$58,9,FALSE) -> 0 | I41: =VLOOKUP(L41,Tabella_prezzi!$A$3:$J$58,3,FALSE) -> 0 | K41: =VLOOKUP(L41,Tabella_prezzi!$A$3:$J$58,4,FALSE) -> 0 | L41: L1N22 | M41: =VLOOKUP(L41,Tabella_prezzi!$A$3:$J$58,6,FALSE) -> 0
A42: [TS3L1-X710] Intel X710 Dual Port 10GbE SFP+ Adapter | B42: Additional Network Cards | C42: G4BZI6S | D42: =VLOOKUP(L42,Tabella_prezzi!$A$3:$J$58,8,FALSE) -> 0 | F42: 540-BBHP | G42: 1 | H42: =VLOOKUP(L42,Tabella_prezzi!$A$3:$J$58,9,FALSE) -> 0 | I42: =VLOOKUP(L42,Tabella_prezzi!$A$3:$J$58,3,FALSE) -> 0 | K42: =VLOOKUP(L42,Tabella_prezzi!$A$3:$J$58,4,FALSE) -> 0 | L42: L1N23 | M42: =VLOOKUP(L42,Tabella_prezzi!$A$3:$J$58,6,FALSE) -> 0
A43: [TS3L1-E12002] Emulex LPE 12002 Dual Port 8Gb Fibre Channel HBA | B43: Fibre Channel Adapters/Converged Network Adapter | C43: G39XE5Y | D43: =VLOOKUP(L43,Tabella_prezzi!$A$3:$J$58,8,FALSE) -> 0 | F43: 406-BBDY | G43: 1 | H43: =VLOOKUP(L43,Tabella_prezzi!$A$3:$J$58,9,FALSE) -> 0 | I43: =VLOOKUP(L43,Tabella_prezzi!$A$3:$J$58,3,FALSE) -> 0 | K43: =VLOOKUP(L43,Tabella_prezzi!$A$3:$J$58,4,FALSE) -> 0 | L43: L1N24 | M43: =VLOOKUP(L43,Tabella_prezzi!$A$3:$J$58,6,FALSE) -> 0
A44: [TS3L1-CtrlSAS] SAS 12Gbps HBA External Controller | B44: Additional PCIe Cards | C44: GHPM5DX | D44: =VLOOKUP(L44,Tabella_prezzi!$A$3:$J$58,8,FALSE) -> 0 | F44: 405-AAEB | G44: 1 | H44: =VLOOKUP(L44,Tabella_prezzi!$A$3:$J$58,9,FALSE) -> 0 | I44: =VLOOKUP(L44,Tabella_prezzi!$A$3:$J$58,3,FALSE) -> 0 | K44: =VLOOKUP(L44,Tabella_prezzi!$A$3:$J$58,4,FALSE) -> 0 | L44: L1N25 | M44: =VLOOKUP(L44,Tabella_prezzi!$A$3:$J$58,6,FALSE) -> 0
A46: TS3L1_PCI3
A47: ="" ->  | G47: ="" ->  | I47: ="" ->  | L47: ="" ->  | M47: ="" -> 
A48: [TS3L1-LAN1] Broadcom 5720 Dual Port 1GbE BASE-T Adapter | B48: Additional Network Cards | C48: GI7RBKF | D48: =VLOOKUP(L48,Tabella_prezzi!$A$3:$J$58,8,FALSE) -> Scheda LAN 5720 DP 1Gb Full | F48: 540-BBCX | G48: 1 | H48: =VLOOKUP(L48,Tabella_prezzi!$A$3:$J$58,9,FALSE) -> L1N03-OpzGigabit | I48: =VLOOKUP(L48,Tabella_prezzi!$A$3:$J$58,3,FALSE) -> OpzGigabit | J48: =VLOOKUP(L48,Tabella_prezzi!$A$3:$J$58,4,FALSE) -> 25 | L48: L1N03 | M48: =VLOOKUP(L48,Tabella_prezzi!$A$3:$J$58,6,FALSE) -> TS3L1-LAN1
A50: TS3L1_PCI4
A51: ="" ->  | G51: ="" ->  | I51: ="" ->  | L51: ="" ->  | M51: ="" -> 
A52: [TS3L1-LAN1] Broadcom 5720 Dual Port 1GbE BASE-T Adapter | B52: Additional Network Cards | C52: GI7RBKF | D52: =VLOOKUP(L52,Tabella_prezzi!$A$3:$J$58,8,FALSE) -> Scheda LAN 5720 DP 1Gb Full | F52: 540-BBCX | G52: 1 | H52: =VLOOKUP(L52,Tabella_prezzi!$A$3:$J$58,9,FALSE) -> L1N03-OpzGigabit | I52: =VLOOKUP(L52,Tabella_prezzi!$A$3:$J$58,3,FALSE) -> OpzGigabit | J52: =VLOOKUP(L52,Tabella_prezzi!$A$3:$J$58,4,FALSE) -> 25 | L52: L1N03 | M52: =VLOOKUP(L52,Tabella_prezzi!$A$3:$J$58,6,FALSE) -> TS3L1-LAN1
A53: -=-=-=-=-=-=-=-=-=-=-=-=-=-=-=-=-20%-=-=-=-=-=-=-=-=-=-=-=-=-=-=-=-=- | G53: ="" ->  | I53: ="" ->  | L53: ="" ->  | M53: ="" -> 
A54: [TS3L1-LAN1QP] Broadcom 5719 Quad Port 1GbE BASE-T Adapter | B54: Additional Network Cards | C54: GY5BHD0 | D54: =VLOOKUP(L54,Tabella_prezzi!$A$3:$J$58,8,FALSE) -> Hard Disk Retention 60 mesi | F54: 540-BBCW | G54: 1 | H54: =VLOOKUP(L54,Tabella_prezzi!$A$3:$J$58,9,FALSE) -> L1N19-OpzHDDRetention60 | I54: =VLOOKUP(L54,Tabella_prezzi!$A$3:$J$58,3,FALSE) -> OpzHDDRetention60 | K54: =VLOOKUP(L54,Tabella_prezzi!$A$3:$J$58,4,FALSE) -> 63 | L54: L1N19 | M54: =VLOOKUP(L54,Tabella_prezzi!$A$3:$J$58,6,FALSE) -> TS3L1-HDRTNTN60
A55: [TS3L1-I3502P] Intel Ethernet I350 Dual Port 1GbE BASE-T Adapter | B55: Additional Network Cards | C55: G3NO02S | D55: =VLOOKUP(L55,Tabella_prezzi!$A$3:$J$58,8,FALSE) -> 0 | F55: 540-BBDH | G55: 1 | H55: =VLOOKUP(L55,Tabella_prezzi!$A$3:$J$58,9,FALSE) -> 0 | I55: =VLOOKUP(L55,Tabella_prezzi!$A$3:$J$58,3,FALSE) -> 0 | K55: =VLOOKUP(L55,Tabella_prezzi!$A$3:$J$58,4,FALSE) -> 0 | L55: L1N20 | M55: =VLOOKUP(L55,Tabella_prezzi!$A$3:$J$58,6,FALSE) -> 0
A56: [TS3L1-I3504P] Intel Ethernet I350 Quad Port 1GbE BASE-T Adapter | B56: Additional Network Cards | C56: G3PC875 | D56: =VLOOKUP(L56,Tabella_prezzi!$A$3:$J$58,8,FALSE) -> 0 | F56: 540-BBDD | G56: 1 | H56: =VLOOKUP(L56,Tabella_prezzi!$A$3:$J$58,9,FALSE) -> 0 | I56: =VLOOKUP(L56,Tabella_prezzi!$A$3:$J$58,3,FALSE) -> 0 | K56: =VLOOKUP(L56,Tabella_prezzi!$A$3:$J$58,4,FALSE) -> 0 | L56: L1N21 | M56: =VLOOKUP(L56,Tabella_prezzi!$A$3:$J$58,6,FALSE) -> 0
A58: Cavo “patch” di 3 mt RJ45 certificato per gigabit ethernet | G58: ="" ->  | I58: =VLOOKUP(L58,Tabella_prezzi!$A$3:$J$58,3,FALSE) -> OpzRJ45 3m | K58: =VLOOKUP(L58,Tabella_prezzi!$A$3:$J$58,4,FALSE) -> 3 | L58: L1N26 | M58: =VLOOKUP(L58,Tabella_prezzi!$A$3:$J$58,6,FALSE) -> TS3L1-RJ453M
A61: TS3L1_BEZEL
A62: No Bezel | B62: Bezel | C62: GKGZ6OF | D62: No Bezel | F62: 350-BBBW | G62: ="" ->  | I62: ="" ->  | K62: 0 | L62: ="" ->  | M62: ="" -> 
A63: -=-=-=-=-=-=-=-=-=-=-=-=-=-=-=-=-20%-=-=-=-=-=-=-=-=-=-=-=-=-=-=-=-=- | G63: ="" ->  | I63: ="" ->  | L63: ="" ->  | M63: ="" -> 
A64: [TS3L1-PSUDVDBZL] Tower Security Bezel | B64: Bezel | C64: G87WRUY | D64: Tower Security Bezel | F64: 325-BCOO | G64: 1 | H64: =VLOOKUP(L64,Tabella_prezzi!$A$3:$J$58,9,FALSE) -> TS3-OpzA20T340K | I64: =VLOOKUP(L64,Tabella_prezzi!$A$3:$J$58,3,FALSE) -> 0 | K64: =VLOOKUP(L64,Tabella_prezzi!$A$3:$J$58,4,FALSE) -> 230 | L64: L1N18 | M64: =VLOOKUP(L64,Tabella_prezzi!$A$3:$J$58,6,FALSE) -> TS3L1-PSUDVDBZL
A66: TS3L1_DVD
A67: No Internal Optical Drive | B67: Internal Optical Drive | C67: G5M9GE3 | D67: No Internal Optical Drive | F67: 429-ABDL | G67: ="" ->  | I67: ="" ->  | K67: 0 | L67: ="" ->  | M67: ="" -> 
A68: -=-=-=-=-=-=-=-=-=-=-=-=-=-=-=-=-20%-=-=-=-=-=-=-=-=-=-=-=-=-=-=-=-=- | G68: ="" ->  | I68: ="" ->  | L68: ="" ->  | M68: ="" -> 
A69: [TS3L1-PSUDVDBZL] DVD +/-RW, SATA, Internal | B69: Internal Optical Drive | C69: GR53HYI | D69: DVD +/-RW, SATA, Internal | F69: 429-ABCJ | G69: 1 | H69: =VLOOKUP(L69,Tabella_prezzi!$A$3:$J$58,9,FALSE) -> TS3-OpzA20T340K | I69: =VLOOKUP(L69,Tabella_prezzi!$A$3:$J$58,3,FALSE) -> 0 | K69: =VLOOKUP(L69,Tabella_prezzi!$A$3:$J$58,4,FALSE) -> 230 | L69: L1N18 | M69: =VLOOKUP(L69,Tabella_prezzi!$A$3:$J$58,6,FALSE) -> TS3L1-PSUDVDBZL
A71: TS3L1_WARRANTY
A72: Manutenzione in garanzia (36 mesi) | B72: Dell Services: Extended Service | C72: G5IMJFP | D72: RESTRICTED:ProSupport One Data Center and Next Business Day Onsite Service Volume Low, 39 Month(s) | F72: 865-BBKY, 865-BBKZ | G72: ="" ->  | I72: ="" ->  | L72: ="" ->  | M72: ="" -> 
A73: [TS3L1-5Y] Manutenzione in garanzia (60 mesi) | B73: Dell Services: Extended Service | C73: G5IMJFP | D73: =VLOOKUP(L73,Tabella_prezzi!$A$3:$J$58,8,FALSE) -> Estensione della manutenzione in garanzia per ulteriori 24 mesi | F73: 865-BBKY, 865-BBKZ | G73: 1 | H73: =VLOOKUP(L73,Tabella_prezzi!$A$3:$J$58,9,FALSE) -> L1N17-OpzEstensione24 | I73: =VLOOKUP(L73,Tabella_prezzi!$A$3:$J$58,3,FALSE) -> OpzEstensione24 | J73: =VLOOKUP(L73,Tabella_prezzi!$A$3:$J$58,4,FALSE) -> 79 | L73: L1N17 | M73: =VLOOKUP(L73,Tabella_prezzi!$A$3:$J$58,6,FALSE) -> TS3L1-5Y
A75: TS3L1_KYHDD
A76: ="" ->  | B76: Keep Your Hard Drive | G76: ="" ->  | I76: ="" ->  | L76: ="" ->  | M76: ="" -> 
A77: Hard Disk Retention | B77: Keep Your Hard Drive | C77: GPZX1KQ | D77: =VLOOKUP(L77,Tabella_prezzi!$A$3:$J$58,8,FALSE) -> Hard Disk Retention 36 mesi | F77: 711-BBBR | G77: 1 | H77: =VLOOKUP(L77,Tabella_prezzi!$A$3:$J$58,9,FALSE) -> L1N16-OpzHDDRetention | I77: =VLOOKUP(L77,Tabella_prezzi!$A$3:$J$58,3,FALSE) -> OpzHDDRetention | J77: =VLOOKUP(L77,Tabella_prezzi!$A$3:$J$58,4,FALSE) -> 38 | L77: L1N16 | M77: =VLOOKUP(L77,Tabella_prezzi!$A$3:$J$58,6,FALSE) -> TS3L1-HDRTNTN | N77: =LEN(M77) -> 13
A78: Hard Disk Retention (60 mesi) | B78: Keep Your Hard Drive | D78: =VLOOKUP(L78,Tabella_prezzi!$A$3:$J$58,8,FALSE) -> Hard Disk Retention 60 mesi | G78: 1 | H78: =VLOOKUP(L78,Tabella_prezzi!$A$3:$J$58,9,FALSE) -> L1N19-OpzHDDRetention60 | I78: =VLOOKUP(L78,Tabella_prezzi!$A$3:$J$58,3,FALSE) -> OpzHDDRetention60 | J78: =VLOOKUP(L78,Tabella_prezzi!$A$3:$J$58,4,FALSE) -> 63 | L78: L1N19 | M78: =VLOOKUP(L78,Tabella_prezzi!$A$3:$J$58,6,FALSE) -> TS3L1-HDRTNTN60
A80: TS3L1_UPS
A81: ="" ->  | G81: ="" ->  | I81: ="" ->  | L81: ="" ->  | M81: ="" -> 
A82: [TS3L1-UPS] UPS PowerMe RPMM/9K - 3000VA Tower | D82: =VLOOKUP(L82,Tabella_prezzi!$A$3:$J$58,8,FALSE) -> Powerme Online UPS RPMM/9 3K, Tower, SNMP card | G82: 1 | H82: =VLOOKUP(L82,Tabella_prezzi!$A$3:$J$58,9,FALSE) -> L1N10-OpzUps | I82: =VLOOKUP(L82,Tabella_prezzi!$A$3:$J$58,3,FALSE) -> OpzUps (3000VA) | J82: =VLOOKUP(L82,Tabella_prezzi!$A$3:$J$58,4,FALSE) -> 302 | L82: L1N10 | M82: =VLOOKUP(L82,Tabella_prezzi!$A$3:$J$58,6,FALSE) -> TS3L1-UPS
A84: TS3L1_GUI
A85: ="" ->  | G85: ="" ->  | I85: ="" ->  | L85: ="" ->  | M85: ="" -> 
A86: [TS3L1-GUI] Monitor DELL E1920H + Keyboard + Mouse | D86: =VLOOKUP(L86,Tabella_prezzi!$A$3:$J$58,8,FALSE) -> KIT Monitor 19" E1920H + Mouse MS116 + Tastiera KB216 | G86: 1 | H86: =VLOOKUP(L86,Tabella_prezzi!$A$3:$J$58,9,FALSE) -> L1N11-OpzGUI | I86: =VLOOKUP(L86,Tabella_prezzi!$A$3:$J$58,3,FALSE) -> OpzGUI per tower | J86: =VLOOKUP(L86,Tabella_prezzi!$A$3:$J$58,4,FALSE) -> 69 | L86: L1N11 | M86: =VLOOKUP(L86,Tabella_prezzi!$A$3:$J$58,6,FALSE) -> TS3L1-GUI
A88: TS3L1-SFPALL
A89: =D89 -> SFP+ SR Optic for all SFP+ ports | B89: SFP+ Transceivers | D89: SFP+ SR Optic for all SFP+ ports | G89: 1 | H89: =VLOOKUP(L89,Tabella_prezzi!$A$3:$J$58,9,FALSE) -> 0 | I89: =VLOOKUP(L89,Tabella_prezzi!$A$3:$J$58,3,FALSE) -> 0 | K89: =VLOOKUP(L89,Tabella_prezzi!$A$3:$J$58,4,FALSE) -> 0 | L89: L1N34 | M89: =VLOOKUP(L89,Tabella_prezzi!$A$3:$J$58,6,FALSE) -> 0
A91: TS3L1_DAC
A92: =D92 -> Dell Networking, Cable, SFP+ to SFP+, 10GbE, Copper Twinax Direct Attach Cable, 1 Meter | B92: SFP+ Direct Attach Cables (Twinax) | D92: =VLOOKUP(L92,Tabella_prezzi!$A$3:$J$58,8,FALSE) -> Dell Networking, Cable, SFP+ to SFP+, 10GbE, Copper Twinax Direct Attach Cable, 1 Meter | G92: 1 | H92: =VLOOKUP(L92,Tabella_prezzi!$A$3:$J$58,9,FALSE) -> 0 | I92: =VLOOKUP(L92,Tabella_prezzi!$A$3:$J$58,3,FALSE) -> 0 | K92: =VLOOKUP(L92,Tabella_prezzi!$A$3:$J$58,4,FALSE) -> 0 | L92: L1N35 | M92: =VLOOKUP(L92,Tabella_prezzi!$A$3:$J$58,6,FALSE) -> 0
A93: Dell Networking, Cable, SFP+ to SFP+, 10GbE, Copper Twinax Direct Attach Cable, 3 Meter | B93: SFP+ Direct Attach Cables (Twinax) | D93: =VLOOKUP(L93,Tabella_prezzi!$A$3:$J$58,8,FALSE) -> Dell Networking, Cable, SFP+ to SFP+, 10GbE, Copper Twinax Direct Attach Cable, 3 Meter | G93: 1 | H93: =VLOOKUP(L93,Tabella_prezzi!$A$3:$J$58,9,FALSE) -> 0 | I93: =VLOOKUP(L93,Tabella_prezzi!$A$3:$J$58,3,FALSE) -> 0 | K93: =VLOOKUP(L93,Tabella_prezzi!$A$3:$J$58,4,FALSE) -> 0 | L93: L1N36 | M93: =VLOOKUP(L93,Tabella_prezzi!$A$3:$J$58,6,FALSE) -> 0
A94: Dell Networking, Cable, SFP+ to SFP+, 10GbE, Copper Twinax Direct Attach Cable, 5 Meter | B94: SFP+ Direct Attach Cables (Twinax) | D94: =VLOOKUP(L94,Tabella_prezzi!$A$3:$J$58,8,FALSE) -> Dell Networking, Cable, SFP+ to SFP+, 10GbE, Copper Twinax Direct Attach Cable, 5 Meter | G94: 1 | H94: =VLOOKUP(L94,Tabella_prezzi!$A$3:$J$58,9,FALSE) -> 0 | I94: =VLOOKUP(L94,Tabella_prezzi!$A$3:$J$58,3,FALSE) -> 0 | K94: =VLOOKUP(L94,Tabella_prezzi!$A$3:$J$58,4,FALSE) -> 0 | L94: L1N37 | M94: =VLOOKUP(L94,Tabella_prezzi!$A$3:$J$58,6,FALSE) -> 0
A96: TS3L1_SAS
A97: =D97 -> 12Gb HD-Mini to HD-Mini SAS Cable, 2M | B97: SAS Cables | D97: 12Gb HD-Mini to HD-Mini SAS Cable, 2M | G97: 1 | H97: =VLOOKUP(L97,Tabella_prezzi!$A$3:$J$58,9,FALSE) -> 0 | I97: =VLOOKUP(L97,Tabella_prezzi!$A$3:$J$58,3,FALSE) -> 0 | K97: =VLOOKUP(L97,Tabella_prezzi!$A$3:$J$58,4,FALSE) -> 0 | L97: L1N29 | M97: =VLOOKUP(L97,Tabella_prezzi!$A$3:$J$58,6,FALSE) -> 0
A98: 12Gb HD-Mini to HD-Mini SAS Cable, 6M | B98: SAS Cables | D98: 12Gb HD-Mini to HD-Mini SAS Cable, 6M | G98: 1 | H98: =VLOOKUP(L98,Tabella_prezzi!$A$3:$J$58,9,FALSE) -> 0 | I98: =VLOOKUP(L98,Tabella_prezzi!$A$3:$J$58,3,FALSE) -> 0 | K98: =VLOOKUP(L98,Tabella_prezzi!$A$3:$J$58,4,FALSE) -> 0 | L98: L1N30 | M98: =VLOOKUP(L98,Tabella_prezzi!$A$3:$J$58,6,FALSE) -> 0
A99: 12Gb HD-Mini SAS cable, 0.5m | B99: SAS Cables | D99: 12Gb HD-Mini SAS cable, 0.5m | G99: 1 | H99: =VLOOKUP(L99,Tabella_prezzi!$A$3:$J$58,9,FALSE) -> 0 | I99: =VLOOKUP(L99,Tabella_prezzi!$A$3:$J$58,3,FALSE) -> 0 | K99: =VLOOKUP(L99,Tabella_prezzi!$A$3:$J$58,4,FALSE) -> 0 | L99: L1N31 | M99: =VLOOKUP(L99,Tabella_prezzi!$A$3:$J$58,6,FALSE) -> 0
A100: 12Gb HD-Mini SAS cable, 2m | B100: SAS Cables | D100: 12Gb HD-Mini SAS cable, 2m | G100: 1 | H100: =VLOOKUP(L100,Tabella_prezzi!$A$3:$J$58,9,FALSE) -> 0 | I100: =VLOOKUP(L100,Tabella_prezzi!$A$3:$J$58,3,FALSE) -> 0 | K100: =VLOOKUP(L100,Tabella_prezzi!$A$3:$J$58,4,FALSE) -> 0 | L100: L1N32 | M100: =VLOOKUP(L100,Tabella_prezzi!$A$3:$J$58,6,FALSE) -> 0
A101: 12Gb Mini-SAS HD to Mini-SAS HD Cable, 4m | B101: SAS Cables | D101: 12Gb Mini-SAS HD to Mini-SAS HD Cable, 4m | G101: 1 | H101: =VLOOKUP(L101,Tabella_prezzi!$A$3:$J$58,9,FALSE) -> 0 | I101: =VLOOKUP(L101,Tabella_prezzi!$A$3:$J$58,3,FALSE) -> 0 | K101: =VLOOKUP(L101,Tabella_prezzi!$A$3:$J$58,4,FALSE) -> 0 | L101: L1N33 | M101: =VLOOKUP(L101,Tabella_prezzi!$A$3:$J$58,6,FALSE) -> 0
A109: TS3L11PSU
A110: TS3L12PSU

Sheet Tabella_prezzi (hidden)
A2: N° | C2: Attributo | D2: Valore inserito | E2: N° | F2: Codice Convenzione | G2: Qty: | H2: Description: | I2: Sku Number: | J2: Brand
A3: L1N01 | B3: 1 | C3: Server Tower mono-processore | D3: 1399 | E3: L1N01 | F3: TS3L1-SRV | G3: 1 | H3: DELL PowerEdge T340 Server | I3: L1N01-ServerT340 | J3: DELL | K3: =D3/100*20 -> 279.8
A4: L1N02 | B4: 2 | C4: OpzRAM16GB | D4: 98 | E4: L1N02 | F4: TS3L1-RAM16 | G4: 1 | H4: 16GB - 2Rx8 DDR4 UDIMM 2666MHz | I4: L1N02-OpzRAM16GB | J4: DELL | M4: AA335286
A5: L1N03 | B5: 3 | C5: OpzGigabit | D5: 25 | E5: L1N03 | F5: TS3L1-LAN1 | G5: 1 | H5: Scheda LAN 5720 DP 1Gb Full | I5: L1N03-OpzGigabit | J5: DELL | M5: 540-BBGY
A6: L1N04 | B6: 4 | C6: OpzHDD8TB | D6: 285 | E6: L1N04 | F6: TS3L1-HDD8TB | G6: 1 | H6: HDD 8TB 7.2K SATA 6Gbps 3.5in Hot-plug | I6: L1N04-OpzHDD8TB | J6: DELL | M6: 400-AHID
A7: L1N05 | B7: 5 | C7: OpzHDD4TB | D7: 194 | E7: L1N05 | F7: TS3L1-HDD4TB | G7: 1 | H7: HDD 4TB 7.2K SATA 6Gbps 3.5in Hot-plug | I7: L1N05-OpzHDD4TB | J7: DELL | M7: 400-AUWY
A8: L1N06 | B8: 6 | C8: OpzHDD2TB | D8: 148 | E8: L1N06 | F8: TS3L1-HDD2TB | G8: 1 | H8: HDD 2TB 7.2K SATA 6Gbps 3.5in Hot-plug | I8: L1N06-OpzHDD2TB | J8: DELL | M8: 400-AUWX
A9: L1N07 | B9: 7 | C9: OpzHDD1TB | D9: 80 | E9: L1N07 | F9: TS3L1-HDD1TB | G9: 1 | H9: HDD 1TB 7.2K SATA 6Gbps 3.5in Hot-plug | I9: L1N07-OpzHDD1TB | J9: DELL | M9: 400-AURS
A10: L1N08 | B10: 8 | C10: OpzSSD-RI800GB | D10: 216 | E10: L1N08 | F10: TS3L1-RI800GB | G10: 1 | H10: SSD 960GB SATA RI 6Gbps 2.5in in 3.5in Hybrid Carrier, 1 DWPD | I10: L1N08-OpzSSD-RI800GB | J10: DELL | M10: 400-BDPC
A11: L1N09 | B11: 9 | C11: OpzSSD-RI400GB | D11: 160 | E11: L1N09 | F11: TS3L1-RI400GB | G11: 1 | H11: SSD 480GB SATA RI 6Gbps 2.5in in 3.5in Hybrid Carrier, 1 DWPD | I11: L1N09-OpzSSD-RI400GB | J11: DELL | M11: 400-BDQT
A12: L1N10 | B12: 10 | C12: OpzUps (3000VA) | D12: 302 | E12: L1N10 | F12: TS3L1-UPS | G12: 1 | H12: Powerme Online UPS RPMM/9 3K, Tower, SNMP card | I12: L1N10-OpzUps | J12: PowerME | M12: TPMM/ 3K
A13: L1N11 | B13: 11 | C13: OpzGUI per tower | D13: 69 | E13: L1N11 | F13: TS3L1-GUI | G13: 1 | H13: KIT Monitor 19" E1920H + Mouse MS116 + Tastiera KB216 | I13: L1N11-OpzGUI | J13: DELL | M13: 580-ADHM
G14: 1 | H14: Mouse ottico Dell MS116 - nero | I14: 570-AAIS | M14: 570-AAIS
G15: 1 | H15: BASE,DIS,MON,E1920H,EMEA | I15: 210-AURI | M15: 210-AURI
G16: 1 | H16: Italian 220V Power Cord | I16: 450-ABCK | M16: 450-ABCK
G17: 1 | H17: SnP order - EMEA. | I17: 800-10243 | M17: 800-10243
G18: 1 | H18: 39M Basic with Advanced Exchange Channel | I18: 709-17931 | M18: 709-17931
G19: 1 | H19: No Warranty Upgrade | I19: 710-10844 | M19: 710-10844
A20: L1N12 | B20: 12 | C20: OpzWinServESS | D20: 256 | E20: L1N12 | F20: TS3L1-WINSRVESS | G20: 1 | H20: Windows Server 2019,Essentials, ROK | I20: L1N12-OpzWinServESS | J20: DELL | M20: 634-BSFZ
A21: L1N13 | B21: 13 | E21: L1N13
A22: L1N14 | B22: 14 | E22: L1N14
A23: L1N15 | B23: 15 | C23: OpzOpenSource | D23: 49 | E23: L1N15 | F23: TS3L1-LINUX | G23: 1 | H23: Ubuntu 18.04 LTS 64 Bit | I23: L1N15-OpzOpenSource
A24: L1N16 | B24: 16 | C24: OpzHDDRetention | D24: 38 | E24: L1N16 | F24: TS3L1-HDRTNTN | G24: 1 | H24: Hard Disk Retention 36 mesi | I24: L1N16-OpzHDDRetention | J24: DELL | M24: 785-10921
A25: L1N17 | B25: 17 | C25: OpzEstensione24 | D25: 79 | E25: L1N17 | F25: TS3L1-5Y | G25: 1 | H25: Estensione della manutenzione in garanzia per ulteriori 24 mesi | I25: L1N17-OpzEstensione24 | J25: DELL | M25: 742-10105
A26: L1N18 | B26: 18 | D26: 230 | E26: L1N18 | F26: TS3L1-PSUDVDBZL | G26: 1 | H26: Kit per T340 composto da: Hot-plug Power Supply 495W, DVD+/-RW SATA interno, Security Bezel | I26: TS3-OpzA20T340K | J26: DELL | M26: 450-AEBM
A27: L1N19 | B27: 19 | C27: OpzHDDRetention60 | D27: 63 | E27: L1N19 | F27: TS3L1-HDRTNTN60 | G27: 1 | H27: Hard Disk Retention 60 mesi | I27: L1N19-OpzHDDRetention60 | J27: DELL
A28: L1N20 | B28: 20 | E28: L1N20
A29: L1N21 | B29: 21 | E29: L1N21
A30: L1N22 | B30: 22 | E30: L1N22
A31: L1N23 | B31: 23 | E31: L1N23
A32: L1N24 | B32: 24 | E32: L1N24
A33: L1N25 | B33: 25 | E33: L1N25
A34: L1N26 | B34: 26 | C34: OpzRJ45 3m | D34: 3 | E34: L1N26 | F34: TS3L1-RJ453M | G34: 1 | H34: cavo “patch” di 3 mt RJ45 certificato per gigabit ethernet | I34: TS3-OpzA20RJ45
A35: L1N27 | B35: 27 | C35: OpzBezel | D35: 45 | E35: L1N27 | F35: TS3L1-BEZEL | G35: 1 | H35: Tower Bezel, PowerEdge, T340 | I35: TS3-OpzA20BT340 | J35: DELL | M35: 470-ACNV
A36: L1N28 | B36: 28 | C36: OpzDVD | D36: 55 | E36: L1N28 | F36: TS3L1-DVD | G36: 1 | H36: DVD+/-RW, SATA, Internal | I36: TS3-OpzA20DVD | J36: DELL | M36: 429-ABIE
A37: L1N29 | B37: 29 | E37: L1N29
A38: L1N30 | B38: 30 | E38: L1N30
A39: L1N31 | B39: 31 | E39: L1N31
A40: L1N32 | B40: 32 | E40: L1N32
A41: L1N33 | B41: 33 | E41: L1N33
A42: L1N34 | B42: 34 | E42: L1N34
A43: L1N35 | B43: 35 | E43: L1N35 | H43: Dell Networking, Cable, SFP+ to SFP+, 10GbE, Copper Twinax Direct Attach Cable, 1 Meter
A44: L1N36 | B44: 36 | E44: L1N36 | H44: Dell Networking, Cable, SFP+ to SFP+, 10GbE, Copper Twinax Direct Attach Cable, 3 Meter
A45: L1N37 | B45: 37 | E45: L1N37 | H45: Dell Networking, Cable, SFP+ to SFP+, 10GbE, Copper Twinax Direct Attach Cable, 5 Meter
A46: L1N38 | B46: 38 | E46: L1N38
A47: L1N39 | B47: 39 | E47: L1N39
A48: L1N40 | B48: 40 | E48: L1N40
A49: L1N41 | B49: 41 | E49: L1N41
A50: L1N42 | B50: 42 | E50: L1N42
A51: L1N43 | B51: 43 | E51: L1N43
A52: L1N44 | B52: 44 | E52: L1N44
A53: L1N45 | B53: 45 | E53: L1N45
A54: L1N46 | B54: 46 | E54: L1N46
A55: L1N47 | B55: 47 | E55: L1N47
A56: L1N48 | B56: 48 | E56: L1N48
A57: L1N49 | B57: 49 | E57: L1N49
A58: L1N50 | B58: 50 | C58: L1N50-OpzCodiceNATO | D58: 200 | E58: L1N50 | F58: TS3L1-NATO | G58: 1 | H58: Codifica NATO | J58: DELL

Sheet Riepilogo
J1: 1
B2: Ente: | J2: 1 | L2: ente | M2: =IF(D2>0,0,1) -> 1
J3: 1
B4: Ordine N. | E4: =M7 -> ERRORE DI MANCATA COMPILAZIONE DATI NECESSARI PER L'ORDINATIVO | J4: 1 | L4: N°ordine | M4: =IF(D4>0,0,1) -> 1
E5: =M8 ->  | J5: 1
B6: Data | E6: =M9 ->  | J6: 1 | L6: data | M6: =IF(D6>0,0,1) -> 1
E7: =M10 ->  | J7: 1 | L7: ERRORE1 | M7: =IF(M2+M4+M6+M11+M13+M16+M18+O18+O13,"ERRORE DI MANCATA COMPILAZIONE DATI NECESSARI PER L'ORDINATIVO","") -> ERRORE DI MANCATA COMPILAZIONE DATI NECESSARI PER L'ORDINATIVO | N7: =IF(M7="",0,1) -> 1
B8: Totale IVA incl. | D8: =G67 -> 0 | E8: =IF(Q11=0,"CONFIGURATORE OK", "") ->  | G8: Version 2.8 | J8: 1 | L8: Warning2 | M8: =IF(G64>D64,"!!! ATTENZIONE !!! L'IMPORTO 20% SUPERA IL VALORE MASSIMO CONSENTITO","") ->  | N8: =IF(M8="",0,1) -> 0
J9: 1 | L9: ERRORE3 | M9: ="" ->  | N9: 0
J10: 1 | L10: Waning4 | M10: =IF(N10>0,"!!! ATTENZIONE !!! COMPLETARE IL CAMPO NOTE NELLE CONFIGURAZIONI","") ->  | N10: =IF(M22>0,O10,0)+IF(N22>0,P10,0)+IF(O22>0,Q10,0) -> 0 | O10: =IF(Lotto1_T340_1!$H$27="Specificare la configurazione RAID per l'installazione del Sistema Operativo, se richiesto. e/o inserire eventuali note.",1,0) -> 1 | P10: =IF(Lotto1_T340_2!$H$27="Specificare la configurazione RAID per l'installazione del Sistema Operativo, se richiesto. e/o inserire eventuali note.",1,0) -> 1 | Q10: =IF(Lotto1_T340_3!$H$27="Specificare la configurazione RAID per l'installazione del Sistema Operativo, se richiesto. e/o inserire eventuali note.",1,0) -> 1
B11: Referente Consegna | J11: 1 | L11: ref1 | M11: =IF(D11>0,0,1) -> 1 | O11: Verifica Errori | Q11: =N7+N9 -> 1
J12: 1
B13: Telefono | D13: email | J13: 1 | L13: tel1 | M13: =IF(C13>0,0,1) -> 1 | N13: mail1 | O13: =IF(E13>0,0,1) -> 1
J14: 1
J15: 1
B16: Referente Installazione | J16: 1 | L16: ref2 | M16: =IF(D16>0,0,1) -> 1
J17: 1
B18: Telefono | D18: email | J18: 1 | L18: tel2 | M18: =IF(C18>0,0,1) -> 1 | N18: mail2 | O18: =IF(E18>0,0,1) -> 1
J19: 1
J20: 1 | M20: Server1 | N20: Server2 | O20: Server3 | P20: Totale
B21: TECNOLOGIE SERVER 3 LOTTO 1 - LISTA ARTICOLI IN CONVENZIONE - | J21: =IF($G$63>0,1,0) -> 0
B22: Quantità | C22: Codice Articolo Produttore | D22: Codice Articolo Convenzione | E22: Descrizione | F22: Costo unitario | G22: Costo complessivo | J22: =IF($G$63>0,1,0) -> 0 | K22: Codice Convenzione | L22: N° | M22: =Lotto1_T340_1!F5 -> 0 | N22: =Lotto1_T340_2!F5 -> 0 | O22: =Lotto1_T340_3!F5 -> 0
B23: =IF(P23>0,P23,"") ->  | C23: =IF(B23="","",VLOOKUP(L23,Tabella_prezzi!$A$3:$J$58,9,FALSE)) ->  | D23: =IF(B23="","",VLOOKUP(L23,Tabella_prezzi!$A$3:$J$58,6,FALSE)) ->  | E23: =IF(B23="","",VLOOKUP(L23,Tabella_prezzi!$A$3:$J$58,8,FALSE)) ->  | F23: =IF(B23="","",VLOOKUP(L23,Tabella_prezzi!$A$3:$J$58,4,FALSE)) ->  | G23: =IF(C23="","",F23*B23) ->  | J23: =IF(B23="",0,1) -> 0 | K23: TS3L1-SRV | L23: L1N01 | M23: =COUNTIF($Q$23:$Q$53,L23)*$M$22 -> 0 | N23: =COUNTIF($S$23:$S$53,L23)*$N$22 -> 0 | O23: =COUNTIF($U$23:$U$53,L23)*$O$22 -> 0 | P23: =SUM(M23:O23) -> 0 | Q23: =Lotto1_T340_1!L8 -> L1N01 | R23: =Lotto1_T340_1!F8 ->  | S23: =Lotto1_T340_2!L8 -> L1N01 | T23: =Lotto1_T340_2!F8 ->  | U23: =Lotto1_T340_3!L8 -> L1N01 | V23: =Lotto1_T340_3!F8 ->  | X23: =ISODD(J23) -> FALSE
B24: =IF(P24>0,P24,"") ->  | C24: =IF(B24="","",VLOOKUP(L24,Tabella_prezzi!$A$3:$J$58,9,FALSE)) ->  | D24: =IF(B24="","",VLOOKUP(L24,Tabella_prezzi!$A$3:$J$58,6,FALSE)) ->  | E24: =IF(B24="","",VLOOKUP(L24,Tabella_prezzi!$A$3:$J$58,8,FALSE)) ->  | F24: =IF(B24="","",VLOOKUP(L24,Tabella_prezzi!$A$3:$J$58,4,FALSE)) ->  | G24: =IF(C24="","",F24*B24) ->  | J24: =IF(B24="",0,1) -> 0 | K24: TS3L1-RAM16 | L24: L1N02 | M24: =COUNTIF($Q$23:$Q$53,L24)*$M$22*R24 -> 0 | N24: =COUNTIF($S$23:$S$53,L24)*$N$22*T24 -> 0 | O24: =COUNTIF($U$23:$U$53,L24)*$O$22*V24 -> 0 | P24: 0 | Q24: =Lotto1_T340_1!L20 ->  | R24: =Lotto1_T340_1!F20 -> 0 | S24: =Lotto1_T340_2!L20 ->  | T24: =Lotto1_T340_2!F20 -> 0 | U24: =Lotto1_T340_3!L20 ->  | V24: =Lotto1_T340_3!F20 -> 0 | X24: =ISODD(SUM($J$23:J24)) -> FALSE
C25: =IF(B25="","",VLOOKUP(L25,Tabella_prezzi!$A$3:$J$58,9,FALSE)) ->  | D25: =IF(B25="","",VLOOKUP(L25,Tabella_prezzi!$A$3:$J$58,6,FALSE)) ->  | E25: =IF(B25="","",VLOOKUP(L25,Tabella_prezzi!$A$3:$J$58,8,FALSE)) ->  | F25: =IF(B25="","",VLOOKUP(L25,Tabella_prezzi!$A$3:$J$58,4,FALSE)) ->  | J25: 0 | K25: TS3L1-LAN1 | L25: L1N03 | M25: =COUNTIF($Q$23:$Q$53,L25)*$M$22 -> 0 | N25: =COUNTIF($S$23:$S$53,L25)*$N$22 -> 0 | O25: =COUNTIF($U$23:$U$53,L25)*$O$22 -> 0 | P25: 0 | Q25: =Lotto1_T340_1!L23 ->  | R25: =Lotto1_T340_1!F23 ->  | S25: =Lotto1_T340_2!L23 ->  | T25: =Lotto1_T340_2!F23 ->  | U25: =Lotto1_T340_3!L23 ->  | V25: =Lotto1_T340_3!F23 ->  | X25: =ISODD(SUM($J$23:J25)) -> FALSE
C26: =IF(B26="","",VLOOKUP(L26,Tabella_prezzi!$A$3:$J$58,9,FALSE)) ->  | D26: =IF(B26="","",VLOOKUP(L26,Tabella_prezzi!$A$3:$J$58,6,FALSE)) ->  | E26: =IF(B26="","",VLOOKUP(L26,Tabella_prezzi!$A$3:$J$58,8,FALSE)) ->  | F26: =IF(B26="","",VLOOKUP(L26,Tabella_prezzi!$A$3:$J$58,4,FALSE)) ->  | J26: 0 | K26: TS3L1-HDD8TB | L26: L1N04 | M26: 0 | N26: 0 | O26: 0 | P26: 0 | Q26: =Lotto1_T340_1!L29 ->  | R26: =Lotto1_T340_1!F29 ->  | S26: =Lotto1_T340_2!L29 ->  | T26: =Lotto1_T340_2!F29 ->  | U26: =Lotto1_T340_3!L29 ->  | V26: =Lotto1_T340_3!F29 ->  | X26: =ISODD(SUM($J$23:J26)) -> FALSE
C27: =IF(B27="","",VLOOKUP(L27,Tabella_prezzi!$A$3:$J$58,9,FALSE)) ->  | D27: =IF(B27="","",VLOOKUP(L27,Tabella_prezzi!$A$3:$J$58,6,FALSE)) ->  | E27: =IF(B27="","",VLOOKUP(L27,Tabella_prezzi!$A$3:$J$58,8,FALSE)) ->  | F27: =IF(B27="","",VLOOKUP(L27,Tabella_prezzi!$A$3:$J$58,4,FALSE)) ->  | J27: 0 | K27: TS3L1-HDD4TB | L27: L1N05 | M27: 0 | N27: 0 | O27: 0 | P27: 0 | Q27: =Lotto1_T340_1!L32 ->  | R27: =Lotto1_T340_1!F32 ->  | S27: =Lotto1_T340_2!L32 ->  | T27: =Lotto1_T340_2!F32 ->  | U27: =Lotto1_T340_3!L32 ->  | V27: =Lotto1_T340_3!F32 ->  | X27: =ISODD(SUM($J$23:J27)) -> FALSE
C28: =IF(B28="","",VLOOKUP(L28,Tabella_prezzi!$A$3:$J$58,9,FALSE)) ->  | D28: =IF(B28="","",VLOOKUP(L28,Tabella_prezzi!$A$3:$J$58,6,FALSE)) ->  | E28: =IF(B28="","",VLOOKUP(L28,Tabella_prezzi!$A$3:$J$58,8,FALSE)) ->  | F28: =IF(B28="","",VLOOKUP(L28,Tabella_prezzi!$A$3:$J$58,4,FALSE)) ->  | J28: 0 | K28: TS3L1-HDD2TB | L28: L1N06 | M28: 0 | N28: 0 | O28: 0 | P28: 0 | Q28: =Lotto1_T340_1!L35 ->  | R28: =Lotto1_T340_1!F35 ->  | S28: =Lotto1_T340_2!L35 ->  | T28: =Lotto1_T340_2!F35 ->  | U28: =Lotto1_T340_3!L35 ->  | V28: =Lotto1_T340_3!F35 ->  | X28: =ISODD(SUM($J$23:J28)) -> FALSE
C29: =IF(B29="","",VLOOKUP(L29,Tabella_prezzi!$A$3:$J$58,9,FALSE)) ->  | D29: =IF(B29="","",VLOOKUP(L29,Tabella_prezzi!$A$3:$J$58,6,FALSE)) ->  | E29: =IF(B29="","",VLOOKUP(L29,Tabella_prezzi!$A$3:$J$58,8,FALSE)) ->  | F29: =IF(B29="","",VLOOKUP(L29,Tabella_prezzi!$A$3:$J$58,4,FALSE)) ->  | J29: 0 | K29: TS3L1-HDD1TB | L29: L1N07 | M29: 0 | N29: 0 | O29: 0 | P29: 0 | Q29: =Lotto1_T340_1!L38 ->  | R29: =Lotto1_T340_1!F38 ->  | S29: =Lotto1_T340_2!L38 ->  | T29: =Lotto1_T340_2!F38 ->  | U29: =Lotto1_T340_3!L38 ->  | V29: =Lotto1_T340_3!F38 ->  | X29: =ISODD(SUM($J$23:J29)) -> FALSE
C30: =IF(B30="","",VLOOKUP(L30,Tabella_prezzi!$A$3:$J$58,9,FALSE)) ->  | D30: =IF(B30="","",VLOOKUP(L30,Tabella_prezzi!$A$3:$J$58,6,FALSE)) ->  | E30: =IF(B30="","",VLOOKUP(L30,Tabella_prezzi!$A$3:$J$58,8,FALSE)) ->  | F30: =IF(B30="","",VLOOKUP(L30,Tabella_prezzi!$A$3:$J$58,4,FALSE)) ->  | J30: 0 | K30: TS3L1-RI800GB | L30: L1N08 | M30: 0 | N30: 0 | O30: 0 | P30: 0 | Q30: =Lotto1_T340_1!L41 -> 0 | R30: =Lotto1_T340_1!F41 ->  | S30: =Lotto1_T340_2!L41 -> 0 | T30: =Lotto1_T340_2!F41 ->  | U30: =Lotto1_T340_3!L41 -> 0 | V30: =Lotto1_T340_3!F41 ->  | X30: =ISODD(SUM($J$23:J30)) -> FALSE
C31: =IF(B31="","",VLOOKUP(L31,Tabella_prezzi!$A$3:$J$58,9,FALSE)) ->  | D31: =IF(B31="","",VLOOKUP(L31,Tabella_prezzi!$A$3:$J$58,6,FALSE)) ->  | E31: =IF(B31="","",VLOOKUP(L31,Tabella_prezzi!$A$3:$J$58,8,FALSE)) ->  | F31: =IF(B31="","",VLOOKUP(L31,Tabella_prezzi!$A$3:$J$58,4,FALSE)) ->  | J31: 0 | K31: TS3L1-RI480GB | L31: L1N09 | M31: 0 | N31: 0 | O31: 0 | P31: 0 | Q31: =Lotto1_T340_1!L50 ->  | R31: =Lotto1_T340_1!F50 ->  | S31: =Lotto1_T340_2!L50 ->  | T31: =Lotto1_T340_2!F50 ->  | U31: =Lotto1_T340_3!L50 ->  | V31: =Lotto1_T340_3!F50 ->  | X31: =ISODD(SUM($J$23:J31)) -> FALSE
C32: =IF(B32="","",VLOOKUP(L32,Tabella_prezzi!$A$3:$J$58,9,FALSE)) ->  | D32: =IF(B32="","",VLOOKUP(L32,Tabella_prezzi!$A$3:$J$58,6,FALSE)) ->  | E32: =IF(B32="","",VLOOKUP(L32,Tabella_prezzi!$A$3:$J$58,8,FALSE)) ->  | F32: =IF(B32="","",VLOOKUP(L32,Tabella_prezzi!$A$3:$J$58,4,FALSE)) ->  | J32: 0 | K32: TS3L1-UPS | L32: L1N10 | M32: 0 | N32: 0 | O32: 0 | P32: 0 | Q32: =Lotto1_T340_1!L53 ->  | R32: =Lotto1_T340_1!F53 ->  | S32: =Lotto1_T340_2!L53 ->  | T32: =Lotto1_T340_2!F53 ->  | U32: =Lotto1_T340_3!L53 ->  | V32: =Lotto1_T340_3!F53 ->  | X32: =ISODD(SUM($J$23:J32)) -> FALSE
C33: =IF(B33="","",VLOOKUP(L33,Tabella_prezzi!$A$3:$J$58,9,FALSE)) ->  | D33: =IF(B33="","",VLOOKUP(L33,Tabella_prezzi!$A$3:$J$58,6,FALSE)) ->  | E33: =IF(B33="","",VLOOKUP(L33,Tabella_prezzi!$A$3:$J$58,8,FALSE)) ->  | F33: =IF(B33="","",VLOOKUP(L33,Tabella_prezzi!$A$3:$J$58,4,FALSE)) ->  | J33: 0 | K33: TS3L1-GUI | L33: L1N11 | M33: 0 | N33: 0 | O33: 0 | P33: 0 | Q33: =Lotto1_T340_1!L56 ->  | R33: =Lotto1_T340_1!F56 ->  | S33: =Lotto1_T340_2!L56 ->  | T33: =Lotto1_T340_2!F56 ->  | U33: =Lotto1_T340_3!L56 ->  | V33: =Lotto1_T340_3!F56 ->  | X33: =ISODD(SUM($J$23:J33)) -> FALSE
C34: =IF(B34="","",VLOOKUP(L34,Tabella_prezzi!$A$3:$J$58,9,FALSE)) ->  | D34: =IF(B34="","",VLOOKUP(L34,Tabella_prezzi!$A$3:$J$58,6,FALSE)) ->  | E34: =IF(B34="","",VLOOKUP(L34,Tabella_prezzi!$A$3:$J$58,8,FALSE)) ->  | F34: =IF(B34="","",VLOOKUP(L34,Tabella_prezzi!$A$3:$J$58,4,FALSE)) ->  | J34: 0 | K34: TS3L1-WINSRVESS | L34: L1N12 | M34: 0 | N34: 0 | O34: 0 | P34: 0 | Q34: =Lotto1_T340_1!L59 ->  | R34: =Lotto1_T340_1!F59 ->  | S34: =Lotto1_T340_2!L59 ->  | T34: =Lotto1_T340_2!F59 ->  | U34: =Lotto1_T340_3!L59 ->  | V34: =Lotto1_T340_3!F59 ->  | X34: =ISODD(SUM($J$23:J34)) -> FALSE
C35: =IF(B35="","",VLOOKUP(L35,Tabella_prezzi!$A$3:$J$58,9,FALSE)) ->  | D35: =IF(B35="","",VLOOKUP(L35,Tabella_prezzi!$A$3:$J$58,6,FALSE)) ->  | E35: =IF(B35="","",VLOOKUP(L35,Tabella_prezzi!$A$3:$J$58,8,FALSE)) ->  | F35: =IF(B35="","",VLOOKUP(L35,Tabella_prezzi!$A$3:$J$58,4,FALSE)) ->  | J35: 0 | L35: L1N13 | M35: 0 | N35: 0 | O35: 0 | P35: 0 | Q35: =Lotto1_T340_1!L62 -> L1N34 | R35: =Lotto1_T340_1!F62 -> 0 | S35: =Lotto1_T340_2!L62 -> L1N34 | T35: =Lotto1_T340_2!F62 -> 0 | U35: =Lotto1_T340_3!L62 -> L1N34 | V35: =Lotto1_T340_3!F62 -> 0 | X35: =ISODD(SUM($J$23:J35)) -> FALSE
C36: =IF(B36="","",VLOOKUP(L36,Tabella_prezzi!$A$3:$J$58,9,FALSE)) ->  | D36: =IF(B36="","",VLOOKUP(L36,Tabella_prezzi!$A$3:$J$58,6,FALSE)) ->  | E36: =IF(B36="","",VLOOKUP(L36,Tabella_prezzi!$A$3:$J$58,8,FALSE)) ->  | F36: =IF(B36="","",VLOOKUP(L36,Tabella_prezzi!$A$3:$J$58,4,FALSE)) ->  | J36: 0 | L36: L1N14 | M36: 0 | N36: 0 | O36: 0 | P36: 0 | Q36: =Lotto1_T340_1!L65 -> L1N35 | R36: =Lotto1_T340_1!F65 -> 0 | S36: =Lotto1_T340_2!L65 -> L1N35 | T36: =Lotto1_T340_2!F65 -> 0 | U36: =Lotto1_T340_3!L65 -> L1N35 | V36: =Lotto1_T340_3!F65 -> 0 | X36: =ISODD(SUM($J$23:J36)) -> FALSE
C37: =IF(B37="","",VLOOKUP(L37,Tabella_prezzi!$A$3:$J$58,9,FALSE)) ->  | D37: =IF(B37="","",VLOOKUP(L37,Tabella_prezzi!$A$3:$J$58,6,FALSE)) ->  | E37: =IF(B37="","",VLOOKUP(L37,Tabella_prezzi!$A$3:$J$58,8,FALSE)) ->  | F37: =IF(B37="","",VLOOKUP(L37,Tabella_prezzi!$A$3:$J$58,4,FALSE)) ->  | J37: 0 | K37: TS3L1-LINUX | L37: L1N15 | M37: 0 | N37: 0 | O37: 0 | P37: 0 | Q37: =Lotto1_T340_1!L66 -> L1N36 | R37: =Lotto1_T340_1!F66 -> 0 | S37: =Lotto1_T340_2!L66 -> L1N36 | T37: =Lotto1_T340_2!F66 -> 0 | U37: =Lotto1_T340_3!L66 -> L1N36 | V37: =Lotto1_T340_3!F66 -> 0 | X37: =ISODD(SUM($J$23:J37)) -> FALSE
C38: =IF(B38="","",VLOOKUP(L38,Tabella_prezzi!$A$3:$J$58,9,FALSE)) ->  | D38: =IF(B38="","",VLOOKUP(L38,Tabella_prezzi!$A$3:$J$58,6,FALSE)) ->  | E38: =IF(B38="","",VLOOKUP(L38,Tabella_prezzi!$A$3:$J$58,8,FALSE)) ->  | F38: =IF(B38="","",VLOOKUP(L38,Tabella_prezzi!$A$3:$J$58,4,FALSE)) ->  | J38: 0 | K38: TS3L1-HDRTNTN | L38: L1N16 | M38: 0 | N38: 0 | O38: 0 | P38: 0 | Q38: =Lotto1_T340_1!L67 -> L1N37 | R38: =Lotto1_T340_1!F67 -> 0 | S38: =Lotto1_T340_2!L67 -> L1N37 | T38: =Lotto1_T340_2!F67 -> 0 | U38: =Lotto1_T340_3!L67 -> L1N37 | V38: =Lotto1_T340_3!F67 -> 0 | X38: =ISODD(SUM($J$23:J38)) -> FALSE
C39: =IF(B39="","",VLOOKUP(L39,Tabella_prezzi!$A$3:$J$58,9,FALSE)) ->  | D39: =IF(B39="","",VLOOKUP(L39,Tabella_prezzi!$A$3:$J$58,6,FALSE)) ->  | E39: =IF(B39="","",VLOOKUP(L39,Tabella_prezzi!$A$3:$J$58,8,FALSE)) ->  | F39: =IF(B39="","",VLOOKUP(L39,Tabella_prezzi!$A$3:$J$58,4,FALSE)) ->  | J39: 0 | K39: TS3L1-5Y | L39: L1N17 | M39: 0 | N39: 0 | O39: 0 | P39: 0 | Q39: =Lotto1_T340_1!L70 -> L1N26 | R39: =Lotto1_T340_1!F70 -> 3 | S39: =Lotto1_T340_2!L70 -> L1N26 | T39: =Lotto1_T340_2!F70 -> 3 | U39: =Lotto1_T340_3!L70 -> L1N26 | V39: =Lotto1_T340_3!F70 -> 3 | X39: =ISODD(SUM($J$23:J39)) -> FALSE
B40: =IF(P40>0,P40,"") ->  | C40: =IF(B40="","",VLOOKUP(L40,Tabella_prezzi!$A$3:$J$58,9,FALSE)) ->  | D40: =IF(B40="","",VLOOKUP(L40,Tabella_prezzi!$A$3:$J$58,6,FALSE)) ->  | E40: =IF(B40="","",VLOOKUP(L40,Tabella_prezzi!$A$3:$J$58,8,FALSE)) ->  | F40: =IF(B40="","",VLOOKUP(L40,Tabella_prezzi!$A$3:$J$58,4,FALSE)) ->  | G40: =IF(C40="","",F40*B40) ->  | J40: 0 | K40: TS3L1-HDRTNTN60 | L40: L1N19 | M40: 0 | N40: 0 | O40: 0 | P40: =SUM(M40:O40) -> 0 | X40: =ISODD(SUM($J$23:J40)) -> FALSE
B41: TECNOLOGIE SERVER 3 LOTTO 1 - LISTA ULTERIORI ARTICOLI IN CONVENZIONE (20%) - | J41: =IF($G$64>0,1,0) -> 0 | Q41: =Lotto1_T340_1!L73 -> L1N29 | R41: =Lotto1_T340_1!F73 -> 0 | S41: =Lotto1_T340_2!L73 -> L1N29 | T41: =Lotto1_T340_2!F73 -> 0 | U41: =Lotto1_T340_3!L73 -> L1N29 | V41: =Lotto1_T340_3!F73 -> 0
B42: Quantità | C42: Codice Articolo Produttore | D42: Codice Articolo Convenzione | E42: Descrizione | F42: Costo unitario | G42: Costo complessivo | J42: =IF($G$64>0,1,0) -> 0 | Q42: =Lotto1_T340_1!L74 -> L1N30 | R42: =Lotto1_T340_1!F74 -> 0 | S42: =Lotto1_T340_2!L74 -> L1N30 | T42: =Lotto1_T340_2!F74 -> 0 | U42: =Lotto1_T340_3!L74 -> L1N30 | V42: =Lotto1_T340_3!F74 -> 0
C43: =IF(B43="","",VLOOKUP(L43,Tabella_prezzi!$A$3:$J$58,9,FALSE)) ->  | D43: =IF(B43="","",VLOOKUP(L43,Tabella_prezzi!$A$3:$J$58,6,FALSE)) ->  | E43: =IF(B43="","",VLOOKUP(L43,Tabella_prezzi!$A$3:$J$58,8,FALSE)) ->  | F43: =IF(B43="","",VLOOKUP(L43,Tabella_prezzi!$A$3:$J$58,4,FALSE)) ->  | J43: =IF(B43="",0,1) -> 0 | K43: TS3L1-PSUDVDBZL | L43: L1N18 | M43: =COUNTIF($Q$23:$Q$53,L43)*$M$22 -> 0 | N43: =COUNTIF($S$23:$S$53,L43)*$N$22 -> 0 | O43: =COUNTIF($U$23:$U$53,L43)*$O$22 -> 0 | P43: 0 | Q43: =Lotto1_T340_1!L75 -> L1N31 | R43: =Lotto1_T340_1!F75 -> 0 | S43: =Lotto1_T340_2!L75 -> L1N31 | T43: =Lotto1_T340_2!F75 -> 0 | U43: =Lotto1_T340_3!L75 -> L1N31 | V43: =Lotto1_T340_3!F75 -> 0 | X43: =ISODD(SUM($J$23:J43)) -> FALSE
J44: 0 | K44: TS3L1-LAN1QP | Q44: =Lotto1_T340_1!L76 -> L1N32 | R44: =Lotto1_T340_1!F76 -> 0 | S44: =Lotto1_T340_2!L76 -> L1N32 | T44: =Lotto1_T340_2!F76 -> 0 | U44: =Lotto1_T340_3!L76 -> L1N32 | V44: =Lotto1_T340_3!F76 -> 0 | X44: =ISODD(SUM($J$23:J44)) -> FALSE
C45: =IF(B45="","",VLOOKUP(L45,Tabella_prezzi!$A$3:$J$58,9,FALSE)) ->  | D45: =IF(B45="","",VLOOKUP(L45,Tabella_prezzi!$A$3:$J$58,6,FALSE)) ->  | E45: =IF(B45="","",VLOOKUP(L45,Tabella_prezzi!$A$3:$J$58,8,FALSE)) ->  | F45: =IF(B45="","",VLOOKUP(L45,Tabella_prezzi!$A$3:$J$58,4,FALSE)) ->  | J45: 0 | K45: TS3L1-I3502P | L45: L1N20 | M45: =COUNTIF($Q$23:$Q$53,L45)*$M$22 -> 0 | N45: =COUNTIF($S$23:$S$53,L45)*$N$22 -> 0 | O45: =COUNTIF($U$23:$U$53,L45)*$O$22 -> 0 | P45: 0 | Q45: =Lotto1_T340_1!L77 -> L1N33 | R45: =Lotto1_T340_1!F77 -> 0 | S45: =Lotto1_T340_2!L77 -> L1N33 | T45: =Lotto1_T340_2!F77 -> 0 | U45: =Lotto1_T340_3!L77 -> L1N33 | V45: =Lotto1_T340_3!F77 -> 0 | X45: =ISODD(SUM($J$23:J45)) -> FALSE
C46: =IF(B46="","",VLOOKUP(L46,Tabella_prezzi!$A$3:$J$58,9,FALSE)) ->  | D46: =IF(B46="","",VLOOKUP(L46,Tabella_prezzi!$A$3:$J$58,6,FALSE)) ->  | E46: =IF(B46="","",VLOOKUP(L46,Tabella_prezzi!$A$3:$J$58,8,FALSE)) ->  | F46: =IF(B46="","",VLOOKUP(L46,Tabella_prezzi!$A$3:$J$58,4,FALSE)) ->  | J46: 0 | K46: TS3L1-I3504P | L46: L1N21 | M46: 0 | N46: 0 | O46: 0 | P46: 0 | R46: =Lotto1_T340_1!F80 ->  | T46: =Lotto1_T340_2!F80 ->  | V46: =Lotto1_T340_3!F80 -> 0 | X46: =ISODD(SUM($J$23:J46)) -> FALSE
C47: =IF(B47="","",VLOOKUP(L47,Tabella_prezzi!$A$3:$J$58,9,FALSE)) ->  | D47: =IF(B47="","",VLOOKUP(L47,Tabella_prezzi!$A$3:$J$58,6,FALSE)) ->  | E47: =IF(B47="","",VLOOKUP(L47,Tabella_prezzi!$A$3:$J$58,8,FALSE)) ->  | F47: =IF(B47="","",VLOOKUP(L47,Tabella_prezzi!$A$3:$J$58,4,FALSE)) ->  | J47: 0 | K47: TS3L1-X550 | L47: L1N22 | M47: 0 | N47: 0 | O47: 0 | P47: 0 | R47: =Lotto1_T340_1!F83 ->  | T47: =Lotto1_T340_2!F83 ->  | V47: =Lotto1_T340_3!F83 ->  | X47: =ISODD(SUM($J$23:J47)) -> FALSE
C48: =IF(B48="","",VLOOKUP(L48,Tabella_prezzi!$A$3:$J$58,9,FALSE)) ->  | D48: =IF(B48="","",VLOOKUP(L48,Tabella_prezzi!$A$3:$J$58,6,FALSE)) ->  | E48: =IF(B48="","",VLOOKUP(L48,Tabella_prezzi!$A$3:$J$58,8,FALSE)) ->  | F48: =IF(B48="","",VLOOKUP(L48,Tabella_prezzi!$A$3:$J$58,4,FALSE)) ->  | J48: 0 | K48: TS3L1-X710 | L48: L1N23 | M48: 0 | N48: 0 | O48: 0 | P48: 0 | Q48: =Lotto1_T340_1!L86 ->  | R48: =Lotto1_T340_1!F86 ->  | S48: =Lotto1_T340_2!L86 ->  | T48: =Lotto1_T340_2!F86 ->  | U48: =Lotto1_T340_3!L86 ->  | V48: =Lotto1_T340_3!F86 ->  | X48: =ISODD(SUM($J$23:J48)) -> FALSE
C49: =IF(B49="","",VLOOKUP(L49,Tabella_prezzi!$A$3:$J$58,9,FALSE)) ->  | D49: =IF(B49="","",VLOOKUP(L49,Tabella_prezzi!$A$3:$J$58,6,FALSE)) ->  | E49: =IF(B49="","",VLOOKUP(L49,Tabella_prezzi!$A$3:$J$58,8,FALSE)) ->  | F49: =IF(B49="","",VLOOKUP(L49,Tabella_prezzi!$A$3:$J$58,4,FALSE)) ->  | J49: 0 | K49: TS3L1-E12002 | L49: L1N24 | M49: 0 | N49: 0 | O49: 0 | P49: 0 | Q49: =Lotto1_T340_1!L89 ->  | R49: =Lotto1_T340_1!F89 ->  | S49: =Lotto1_T340_2!L89 ->  | T49: =Lotto1_T340_2!F89 ->  | U49: =Lotto1_T340_3!L89 ->  | V49: =Lotto1_T340_3!F89 ->  | X49: =ISODD(SUM($J$23:J49)) -> FALSE
C50: =IF(B50="","",VLOOKUP(L50,Tabella_prezzi!$A$3:$J$58,9,FALSE)) ->  | D50: =IF(B50="","",VLOOKUP(L50,Tabella_prezzi!$A$3:$J$58,6,FALSE)) ->  | E50: =IF(B50="","",VLOOKUP(L50,Tabella_prezzi!$A$3:$J$58,8,FALSE)) ->  | F50: =IF(B50="","",VLOOKUP(L50,Tabella_prezzi!$A$3:$J$58,4,FALSE)) ->  | J50: 0 | K50: TS3L1-CtrlSAS | L50: L1N25 | M50: 0 | N50: 0 | O50: 0 | P50: 0 | Q50: =Lotto1_T340_1!L93 ->  | R50: =Lotto1_T340_1!F93 ->  | S50: =Lotto1_T340_2!L93 ->  | T50: =Lotto1_T340_2!F93 ->  | U50: =Lotto1_T340_3!L93 ->  | V50: =Lotto1_T340_3!F93 ->  | X50: =ISODD(SUM($J$23:J50)) -> FALSE
C51: =IF(B51="","",VLOOKUP(L51,Tabella_prezzi!$A$3:$J$58,9,FALSE)) ->  | D51: =IF(B51="","",VLOOKUP(L51,Tabella_prezzi!$A$3:$J$58,6,FALSE)) ->  | E51: =IF(B51="","",VLOOKUP(L51,Tabella_prezzi!$A$3:$J$58,8,FALSE)) ->  | F51: =IF(B51="","",VLOOKUP(L51,Tabella_prezzi!$A$3:$J$58,4,FALSE)) ->  | J51: 0 | K51: TS3L1-RJ453M | L51: L1N26 | M51: =R39*$M$22 -> 0 | N51: =T39*$N$22 -> 0 | O51: =V39*$O$22 -> 0 | P51: 0 | X51: =ISODD(SUM($J$23:J51)) -> FALSE
B52: =IF(P52>0,P52,"") ->  | C52: =IF(B52="","",VLOOKUP(L52,Tabella_prezzi!$A$3:$J$58,9,FALSE)) ->  | D52: =IF(B52="","",VLOOKUP(L52,Tabella_prezzi!$A$3:$J$58,6,FALSE)) ->  | E52: =IF(B52="","",VLOOKUP(L52,Tabella_prezzi!$A$3:$J$58,8,FALSE)) ->  | F52: =IF(B52="","",VLOOKUP(L52,Tabella_prezzi!$A$3:$J$58,4,FALSE)) ->  | G52: =IF(C52="","",F52*B52) ->  | J52: 0 | K52: TS3L1-BEZEL | L52: L1N27 | M52: =COUNTIF($Q$23:$Q$53,L52)*$M$22 -> 0 | N52: =COUNTIF($S$23:$S$53,L52)*$N$22 -> 0 | O52: =COUNTIF($U$23:$U$53,L52)*$O$22 -> 0 | P52: 0 | X52: =ISODD(SUM($J$23:J52)) -> FALSE
C53: =IF(B53="","",VLOOKUP(L53,Tabella_prezzi!$A$3:$J$58,9,FALSE)) ->  | D53: =IF(B53="","",VLOOKUP(L53,Tabella_prezzi!$A$3:$J$58,6,FALSE)) ->  | E53: =IF(B53="","",VLOOKUP(L53,Tabella_prezzi!$A$3:$J$58,8,FALSE)) ->  | F53: =IF(B53="","",VLOOKUP(L53,Tabella_prezzi!$A$3:$J$58,4,FALSE)) ->  | J53: 0 | K53: TS3L1-DVD | L53: L1N28 | M53: =COUNTIF($Q$23:$Q$53,L53)*$M$22 -> 0 | N53: =COUNTIF($S$23:$S$53,L53)*$N$22 -> 0 | O53: =COUNTIF($U$23:$U$53,L53)*$O$22 -> 0 | P53: 0 | Q53: =Lotto1_T340_1!L96 ->  | R53: =Lotto1_T340_1!F96 ->  | S53: =Lotto1_T340_2!L96 ->  | T53: =Lotto1_T340_2!F96 ->  | U53: =Lotto1_T340_3!L96 ->  | V53: =Lotto1_T340_3!F96 ->  | X53: =ISODD(SUM($J$23:J53)) -> FALSE
C54: =IF(B54="","",VLOOKUP(L54,Tabella_prezzi!$A$3:$J$58,9,FALSE)) ->  | D54: =IF(B54="","",VLOOKUP(L54,Tabella_prezzi!$A$3:$J$58,6,FALSE)) ->  | E54: =IF(B54="","",VLOOKUP(L54,Tabella_prezzi!$A$3:$J$58,8,FALSE)) ->  | F54: =IF(B54="","",VLOOKUP(L54,Tabella_prezzi!$A$3:$J$58,4,FALSE)) ->  | J54: 0 | K54: TS3L1-SAS2M | L54: L1N29 | M54: =R41*$M$22 -> 0 | N54: =T41*$N$22 -> 0 | O54: =V41*$O$22 -> 0 | P54: =SUM(M54:O54) -> 0 | X54: =ISODD(SUM($J$23:J54)) -> FALSE
C55: =IF(B55="","",VLOOKUP(L55,Tabella_prezzi!$A$3:$J$58,9,FALSE)) ->  | D55: =IF(B55="","",VLOOKUP(L55,Tabella_prezzi!$A$3:$J$58,6,FALSE)) ->  | E55: =IF(B55="","",VLOOKUP(L55,Tabella_prezzi!$A$3:$J$58,8,FALSE)) ->  | F55: =IF(B55="","",VLOOKUP(L55,Tabella_prezzi!$A$3:$J$58,4,FALSE)) ->  | J55: 0 | K55: TS3L1-SAS6M | L55: L1N30 | M55: =R42*$M$22 -> 0 | N55: =T42*$N$22 -> 0 | O55: =V42*$O$22 -> 0 | P55: =SUM(M55:O55) -> 0 | X55: =ISODD(SUM($J$23:J55)) -> FALSE
C56: =IF(B56="","",VLOOKUP(L56,Tabella_prezzi!$A$3:$J$58,9,FALSE)) ->  | D56: =IF(B56="","",VLOOKUP(L56,Tabella_prezzi!$A$3:$J$58,6,FALSE)) ->  | E56: =IF(B56="","",VLOOKUP(L56,Tabella_prezzi!$A$3:$J$58,8,FALSE)) ->  | F56: =IF(B56="","",VLOOKUP(L56,Tabella_prezzi!$A$3:$J$58,4,FALSE)) ->  | J56: 0 | K56: TS3L1-SAS05M | L56: L1N31 | M56: 0 | N56: 0 | O56: 0 | P56: 0 | X56: =ISODD(SUM($J$23:J56)) -> FALSE
C57: =IF(B57="","",VLOOKUP(L57,Tabella_prezzi!$A$3:$J$58,9,FALSE)) ->  | D57: =IF(B57="","",VLOOKUP(L57,Tabella_prezzi!$A$3:$J$58,6,FALSE)) ->  | E57: =IF(B57="","",VLOOKUP(L57,Tabella_prezzi!$A$3:$J$58,8,FALSE)) ->  | F57: =IF(B57="","",VLOOKUP(L57,Tabella_prezzi!$A$3:$J$58,4,FALSE)) ->  | J57: 0 | K57: TS3L1-SAS2MB | L57: L1N32 | M57: 0 | N57: 0 | O57: 0 | P57: 0 | X57: =ISODD(SUM($J$23:J57)) -> FALSE
C58: =IF(B58="","",VLOOKUP(L58,Tabella_prezzi!$A$3:$J$58,9,FALSE)) ->  | D58: =IF(B58="","",VLOOKUP(L58,Tabella_prezzi!$A$3:$J$58,6,FALSE)) ->  | E58: =IF(B58="","",VLOOKUP(L58,Tabella_prezzi!$A$3:$J$58,8,FALSE)) ->  | F58: =IF(B58="","",VLOOKUP(L58,Tabella_prezzi!$A$3:$J$58,4,FALSE)) ->  | J58: 0 | K58: TS3L1-SAS4M | L58: L1N33 | M58: 0 | N58: 0 | O58: 0 | P58: 0 | X58: =ISODD(SUM($J$23:J58)) -> FALSE
C59: =IF(B59="","",VLOOKUP(L59,Tabella_prezzi!$A$3:$J$58,9,FALSE)) ->  | D59: =IF(B59="","",VLOOKUP(L59,Tabella_prezzi!$A$3:$J$58,6,FALSE)) ->  | E59: =IF(B59="","",VLOOKUP(L59,Tabella_prezzi!$A$3:$J$58,8,FALSE)) ->  | F59: =IF(B59="","",VLOOKUP(L59,Tabella_prezzi!$A$3:$J$58,4,FALSE)) ->  | J59: 0 | K59: TS3L1-SFPALL | L59: L1N34 | M59: =R35*$M$22 -> 0 | N59: =T35*$N$22 -> 0 | O59: =V35*$O$22 -> 0 | P59: =SUM(M59:O59) -> 0 | X59: =ISODD(SUM($J$23:J59)) -> FALSE
C60: =IF(B60="","",VLOOKUP(L60,Tabella_prezzi!$A$3:$J$58,9,FALSE)) ->  | D60: =IF(B60="","",VLOOKUP(L60,Tabella_prezzi!$A$3:$J$58,6,FALSE)) ->  | E60: =IF(B60="","",VLOOKUP(L60,Tabella_prezzi!$A$3:$J$58,8,FALSE)) ->  | F60: =IF(B60="","",VLOOKUP(L60,Tabella_prezzi!$A$3:$J$58,4,FALSE)) ->  | J60: 0 | K60: TS3L1-DAC1M | L60: L1N35 | M60: =R36*$M$22 -> 0 | N60: =T36*$N$22 -> 0 | O60: =V36*$O$22 -> 0 | P60: =SUM(M60:O60) -> 0 | X60: =ISODD(SUM($J$23:J60)) -> FALSE
C61: =IF(B61="","",VLOOKUP(L61,Tabella_prezzi!$A$3:$J$58,9,FALSE)) ->  | D61: =IF(B61="","",VLOOKUP(L61,Tabella_prezzi!$A$3:$J$58,6,FALSE)) ->  | E61: =IF(B61="","",VLOOKUP(L61,Tabella_prezzi!$A$3:$J$58,8,FALSE)) ->  | F61: =IF(B61="","",VLOOKUP(L61,Tabella_prezzi!$A$3:$J$58,4,FALSE)) ->  | J61: 0 | K61: TS3L1-DAC3M | L61: L1N36 | M61: =R37*$M$22 -> 0 | N61: =T37*$N$22 -> 0 | O61: =V37*$O$22 -> 0 | P61: 0 | X61: =ISODD(SUM($J$23:J61)) -> FALSE
C62: =IF(B62="","",VLOOKUP(L62,Tabella_prezzi!$A$3:$J$58,9,FALSE)) ->  | D62: =IF(B62="","",VLOOKUP(L62,Tabella_prezzi!$A$3:$J$58,6,FALSE)) ->  | E62: =IF(B62="","",VLOOKUP(L62,Tabella_prezzi!$A$3:$J$58,8,FALSE)) ->  | F62: =IF(B62="","",VLOOKUP(L62,Tabella_prezzi!$A$3:$J$58,4,FALSE)) ->  | J62: 0 | K62: TS3L1-DAC5M | L62: L1N37 | M62: =R38*$M$22 -> 0 | N62: =T38*$N$22 -> 0 | O62: =V38*$O$22 -> 0 | P62: 0 | X62: =ISODD(SUM($J$23:J62)) -> FALSE
B63: Convenzione | G63: =SUM(G23:G40) -> 0 | J63: =IF(G63=0,0,1) -> 0
B64: Valore economico 20% consentito | D64: =G63/100*20 -> 0 | E64: Ulteriori componenti opzionali (20%) | G64: =SUM(G43:G62) -> 0 | J64: =IF(G64=0,0,1) -> 0
B65: Totale iva esclusa | G65: =G64+G63 -> 0 | J65: 0
B66: I.V.A. | G66: =G65/100*22 -> 0 | J66: 0
B67: TOTALE ORDINE | G67: =G65+G66 -> 0 | J67: 0
J68: 1

Sheet Configurazione
V1: 1
B2: =Riepilogo!M22 -> 0 | C2: PowerEdge T340 Configurazione 1 | E2: =Riepilogo!N22 -> 0 | F2: PowerEdge T340 Configurazione 2 | H2: =Riepilogo!O22 -> 0 | I2: PowerEdge T340 Configurazione 3 | V2: 1
V3: =IF($U$4>0,1,0) -> 0
B4: =IF(Riepilogo!M23>0,Riepilogo!M23/$B$2,"") ->  | C4: =IF(B4="","",Riepilogo!K23) ->  | E4: =IF(Riepilogo!N23>0,Riepilogo!N23/$E$2,"") ->  | F4: =IF(E4="","",Riepilogo!K23) ->  | H4: =IF(Riepilogo!O23>0,Riepilogo!O23/$H$2,"") ->  | I4: =IF(H4="","",Riepilogo!K23) ->  | L4: =IF(B4="",0,B4) -> 0 | O4: =IF(E4="",0,E4) -> 0 | R4: =IF(H4="",0,H4) -> 0 | U4: =SUM(L4:T4) -> 0 | V4: =IF(U4>0,1,0) -> 0 | W4: =ISODD(V4) -> FALSE
B5: =IF(Riepilogo!M24>0,Riepilogo!M24/$B$2,"") ->  | C5: =IF(B5="","",Riepilogo!K24) ->  | E5: =IF(Riepilogo!N24>0,Riepilogo!N24/$E$2,"") ->  | F5: =IF(E5="","",Riepilogo!K24) ->  | H5: =IF(Riepilogo!O24>0,Riepilogo!O24/$H$2,"") ->  | I5: =IF(H5="","",Riepilogo!K24) ->  | L5: =IF(B5="",0,B5) -> 0 | O5: =IF(E5="",0,E5) -> 0 | R5: =IF(H5="",0,H5) -> 0 | U5: =SUM(L5:T5) -> 0 | V5: =IF(U5>0,1,0) -> 0 | W5: =ISODD(SUM($V$4:V5)) -> FALSE
B6: =IF(Riepilogo!M25>0,Riepilogo!M25/$B$2,"") ->  | C6: =IF(B6="","",Riepilogo!K25) ->  | E6: =IF(Riepilogo!N25>0,Riepilogo!N25/$E$2,"") ->  | F6: =IF(E6="","",Riepilogo!K25) ->  | H6: =IF(Riepilogo!O25>0,Riepilogo!O25/$H$2,"") ->  | I6: =IF(H6="","",Riepilogo!K25) ->  | L6: 0 | O6: 0 | R6: 0 | U6: 0 | V6: 0 | W6: =ISODD(SUM($V$4:V6)) -> FALSE
B7: =IF(Riepilogo!M26>0,Riepilogo!M26/$B$2,"") ->  | C7: =IF(B7="","",Riepilogo!K26) ->  | E7: =IF(Riepilogo!N26>0,Riepilogo!N26/$E$2,"") ->  | F7: =IF(E7="","",Riepilogo!K26) ->  | H7: =IF(Riepilogo!O26>0,Riepilogo!O26/$H$2,"") ->  | I7: =IF(H7="","",Riepilogo!K26) ->  | L7: 0 | O7: 0 | R7: 0 | U7: 0 | V7: 0 | W7: =ISODD(SUM($V$4:V7)) -> FALSE
B8: =IF(Riepilogo!M27>0,Riepilogo!M27/$B$2,"") ->  | C8: =IF(B8="","",Riepilogo!K27) ->  | E8: =IF(Riepilogo!N27>0,Riepilogo!N27/$E$2,"") ->  | F8: =IF(E8="","",Riepilogo!K27) ->  | H8: =IF(Riepilogo!O27>0,Riepilogo!O27/$H$2,"") ->  | I8: =IF(H8="","",Riepilogo!K27) ->  | L8: 0 | O8: 0 | R8: 0 | U8: 0 | V8: 0 | W8: =ISODD(SUM($V$4:V8)) -> FALSE
B9: =IF(Riepilogo!M28>0,Riepilogo!M28/$B$2,"") ->  | C9: =IF(B9="","",Riepilogo!K28) ->  | E9: =IF(Riepilogo!N28>0,Riepilogo!N28/$E$2,"") ->  | F9: =IF(E9="","",Riepilogo!K28) ->  | H9: =IF(Riepilogo!O28>0,Riepilogo!O28/$H$2,"") ->  | I9: =IF(H9="","",Riepilogo!K28) ->  | L9: 0 | O9: 0 | R9: 0 | U9: 0 | V9: 0 | W9: =ISODD(SUM($V$4:V9)) -> FALSE
B10: =IF(Riepilogo!M29>0,Riepilogo!M29/$B$2,"") ->  | C10: =IF(B10="","",Riepilogo!K29) ->  | E10: =IF(Riepilogo!N29>0,Riepilogo!N29/$E$2,"") ->  | F10: =IF(E10="","",Riepilogo!K29) ->  | H10: =IF(Riepilogo!O29>0,Riepilogo!O29/$H$2,"") ->  | I10: =IF(H10="","",Riepilogo!K29) ->  | L10: 0 | O10: 0 | R10: 0 | U10: 0 | V10: 0 | W10: =ISODD(SUM($V$4:V10)) -> FALSE
B11: =IF(Riepilogo!M30>0,Riepilogo!M30/$B$2,"") ->  | C11: =IF(B11="","",Riepilogo!K30) ->  | E11: =IF(Riepilogo!N30>0,Riepilogo!N30/$E$2,"") ->  | F11: =IF(E11="","",Riepilogo!K30) ->  | H11: =IF(Riepilogo!O30>0,Riepilogo!O30/$H$2,"") ->  | I11: =IF(H11="","",Riepilogo!K30) ->  | L11: 0 | O11: 0 | R11: 0 | U11: 0 | V11: 0 | W11: =ISODD(SUM($V$4:V11)) -> FALSE
B12: =IF(Riepilogo!M31>0,Riepilogo!M31/$B$2,"") ->  | C12: =IF(B12="","",Riepilogo!K31) ->  | E12: =IF(Riepilogo!N31>0,Riepilogo!N31/$E$2,"") ->  | F12: =IF(E12="","",Riepilogo!K31) ->  | H12: =IF(Riepilogo!O31>0,Riepilogo!O31/$H$2,"") ->  | I12: =IF(H12="","",Riepilogo!K31) ->  | L12: 0 | O12: 0 | R12: 0 | U12: 0 | V12: 0 | W12: =ISODD(SUM($V$4:V12)) -> FALSE
B13: =IF(Riepilogo!M32>0,Riepilogo!M32/$B$2,"") ->  | C13: =IF(B13="","",Riepilogo!K32) ->  | E13: =IF(Riepilogo!N32>0,Riepilogo!N32/$E$2,"") ->  | F13: =IF(E13="","",Riepilogo!K32) ->  | H13: =IF(Riepilogo!O32>0,Riepilogo!O32/$H$2,"") ->  | I13: =IF(H13="","",Riepilogo!K32) ->  | L13: 0 | O13: 0 | R13: 0 | U13: 0 | V13: 0 | W13: =ISODD(SUM($V$4:V13)) -> FALSE
B14: =IF(Riepilogo!M33>0,Riepilogo!M33/$B$2,"") ->  | C14: =IF(B14="","",Riepilogo!K33) ->  | E14: =IF(Riepilogo!N33>0,Riepilogo!N33/$E$2,"") ->  | F14: =IF(E14="","",Riepilogo!K33) ->  | H14: =IF(Riepilogo!O33>0,Riepilogo!O33/$H$2,"") ->  | I14: =IF(H14="","",Riepilogo!K33) ->  | L14: 0 | O14: 0 | R14: 0 | U14: 0 | V14: 0 | W14: =ISODD(SUM($V$4:V14)) -> FALSE
B15: =IF(Riepilogo!M34>0,Riepilogo!M34/$B$2,"") ->  | C15: =IF(B15="","",Riepilogo!K34) ->  | E15: =IF(Riepilogo!N34>0,Riepilogo!N34/$E$2,"") ->  | F15: =IF(E15="","",Riepilogo!K34) ->  | H15: =IF(Riepilogo!O34>0,Riepilogo!O34/$H$2,"") ->  | I15: =IF(H15="","",Riepilogo!K34) ->  | L15: 0 | O15: 0 | R15: 0 | U15: 0 | V15: 0 | W15: =ISODD(SUM($V$4:V15)) -> FALSE
B16: =IF(Riepilogo!M35>0,Riepilogo!M35/$B$2,"") ->  | C16: =IF(B16="","",Riepilogo!K35) ->  | E16: =IF(Riepilogo!N35>0,Riepilogo!N35/$E$2,"") ->  | F16: =IF(E16="","",Riepilogo!K35) ->  | H16: =IF(Riepilogo!O35>0,Riepilogo!O35/$H$2,"") ->  | I16: =IF(H16="","",Riepilogo!K35) ->  | L16: 0 | O16: 0 | R16: 0 | U16: 0 | V16: 0 | W16: =ISODD(SUM($V$4:V16)) -> FALSE
B17: =IF(Riepilogo!M36>0,Riepilogo!M36/$B$2,"") ->  | C17: =IF(B17="","",Riepilogo!K36) ->  | E17: =IF(Riepilogo!N36>0,Riepilogo!N36/$E$2,"") ->  | F17: =IF(E17="","",Riepilogo!K36) ->  | H17: =IF(Riepilogo!O36>0,Riepilogo!O36/$H$2,"") ->  | I17: =IF(H17="","",Riepilogo!K36) ->  | L17: 0 | O17: 0 | R17: 0 | U17: 0 | V17: 0 | W17: =ISODD(SUM($V$4:V17)) -> FALSE
B18: =IF(Riepilogo!M37>0,Riepilogo!M37/$B$2,"") ->  | C18: =IF(B18="","",Riepilogo!K37) ->  | E18: =IF(Riepilogo!N37>0,Riepilogo!N37/$E$2,"") ->  | F18: =IF(E18="","",Riepilogo!K37) ->  | H18: =IF(Riepilogo!O37>0,Riepilogo!O37/$H$2,"") ->  | I18: =IF(H18="","",Riepilogo!K37) ->  | L18: 0 | O18: 0 | R18: 0 | U18: 0 | V18: 0 | W18: =ISODD(SUM($V$4:V18)) -> FALSE
B19: =IF(Riepilogo!M38>0,Riepilogo!M38/$B$2,"") ->  | C19: =IF(B19="","",Riepilogo!K38) ->  | E19: =IF(Riepilogo!N38>0,Riepilogo!N38/$E$2,"") ->  | F19: =IF(E19="","",Riepilogo!K38) ->  | H19: =IF(Riepilogo!O38>0,Riepilogo!O38/$H$2,"") ->  | I19: =IF(H19="","",Riepilogo!K38) ->  | L19: 0 | O19: 0 | R19: 0 | U19: 0 | V19: 0 | W19: =ISODD(SUM($V$4:V19)) -> FALSE
B20: =IF(Riepilogo!M39>0,Riepilogo!M39/$B$2,"") ->  | C20: =IF(B20="","",Riepilogo!K39) ->  | E20: =IF(Riepilogo!N39>0,Riepilogo!N39/$E$2,"") ->  | F20: =IF(E20="","",Riepilogo!K39) ->  | H20: =IF(Riepilogo!O39>0,Riepilogo!O39/$H$2,"") ->  | I20: =IF(H20="","",Riepilogo!K39) ->  | L20: 0 | O20: 0 | R20: 0 | U20: 0 | V20: 0 | W20: =ISODD(SUM($V$4:V20)) -> FALSE
B21: =IF(Riepilogo!M40>0,Riepilogo!M40/$B$2,"") ->  | C21: =IF(B21="","",Riepilogo!K40) ->  | E21: =IF(Riepilogo!N40>0,Riepilogo!N40/$E$2,"") ->  | F21: =IF(E21="","",Riepilogo!K40) ->  | H21: =IF(Riepilogo!O40>0,Riepilogo!O40/$H$2,"") ->  | I21: =IF(H21="","",Riepilogo!K40) ->  | L21: =IF(B21="",0,B21) -> 0 | O21: =IF(E21="",0,E21) -> 0 | R21: =IF(H21="",0,H21) -> 0 | U21: =SUM(L21:T21) -> 0 | V21: =IF(U21>0,1,0) -> 0 | W21: =ISODD(SUM($V$4:V21)) -> FALSE
B22: =IF(Riepilogo!M43>0,Riepilogo!M43/$B$2,"") ->  | C22: =IF(B22="","",CONCATENATE(Riepilogo!C43," - ",Riepilogo!K43)) ->  | E22: =IF(Riepilogo!N43>0,Riepilogo!N43/$E$2,"") ->  | F22: =IF(E22="","",CONCATENATE(Riepilogo!C43," - ",Riepilogo!K43)) ->  | H22: =IF(Riepilogo!O43>0,Riepilogo!O43/$H$2,"") ->  | I22: =IF(H22="","",CONCATENATE(Riepilogo!C43," - ",Riepilogo!K43)) ->  | L22: 0 | O22: 0 | R22: 0 | U22: 0 | V22: 0 | W22: =ISODD(SUM($V$4:V22)) -> FALSE | X22: inizio 20%
B23: =IF(Riepilogo!M44>0,Riepilogo!M44/$B$2,"") ->  | C23: =IF(B23="","",CONCATENATE(Riepilogo!C44," - ",Riepilogo!K44)) ->  | E23: =IF(Riepilogo!N44>0,Riepilogo!N44/$E$2,"") ->  | F23: =IF(E23="","",CONCATENATE(Riepilogo!C44," - ",Riepilogo!K44)) ->  | H23: =IF(Riepilogo!O44>0,Riepilogo!O44/$H$2,"") ->  | I23: =IF(H23="","",CONCATENATE(Riepilogo!C44," - ",Riepilogo!K44)) ->  | L23: 0 | O23: 0 | R23: 0 | U23: 0 | V23: 0 | W23: =ISODD(SUM($V$4:V23)) -> FALSE
B24: =IF(Riepilogo!M45>0,Riepilogo!M45/$B$2,"") ->  | C24: =IF(B24="","",CONCATENATE(Riepilogo!C45," - ",Riepilogo!K45)) ->  | E24: =IF(Riepilogo!N45>0,Riepilogo!N45/$E$2,"") ->  | F24: =IF(E24="","",CONCATENATE(Riepilogo!C45," - ",Riepilogo!K45)) ->  | H24: =IF(Riepilogo!O45>0,Riepilogo!O45/$H$2,"") ->  | I24: =IF(H24="","",CONCATENATE(Riepilogo!C45," - ",Riepilogo!K45)) ->  | L24: 0 | O24: 0 | R24: 0 | U24: 0 | V24: 0 | W24: =ISODD(SUM($V$4:V24)) -> FALSE
B25: =IF(Riepilogo!M46>0,Riepilogo!M46/$B$2,"") ->  | C25: =IF(B25="","",CONCATENATE(Riepilogo!C46," - ",Riepilogo!K46)) ->  | E25: =IF(Riepilogo!N46>0,Riepilogo!N46/$E$2,"") ->  | F25: =IF(E25="","",CONCATENATE(Riepilogo!C46," - ",Riepilogo!K46)) ->  | H25: =IF(Riepilogo!O46>0,Riepilogo!O46/$H$2,"") ->  | I25: =IF(H25="","",CONCATENATE(Riepilogo!C46," - ",Riepilogo!K46)) ->  | L25: 0 | O25: 0 | R25: 0 | U25: 0 | V25: 0 | W25: =ISODD(SUM($V$4:V25)) -> FALSE
B26: =IF(Riepilogo!M47>0,Riepilogo!M47/$B$2,"") ->  | C26: =IF(B26="","",CONCATENATE(Riepilogo!C47," - ",Riepilogo!K47)) ->  | E26: =IF(Riepilogo!N47>0,Riepilogo!N47/$E$2,"") ->  | F26: =IF(E26="","",CONCATENATE(Riepilogo!C47," - ",Riepilogo!K47)) ->  | H26: =IF(Riepilogo!O47>0,Riepilogo!O47/$H$2,"") ->  | I26: =IF(H26="","",CONCATENATE(Riepilogo!C47," - ",Riepilogo!K47)) ->  | L26: 0 | O26: 0 | R26: 0 | U26: 0 | V26: 0 | W26: =ISODD(SUM($V$4:V26)) -> FALSE
B27: =IF(Riepilogo!M48>0,Riepilogo!M48/$B$2,"") ->  | C27: =IF(B27="","",CONCATENATE(Riepilogo!C48," - ",Riepilogo!K48)) ->  | E27: =IF(Riepilogo!N48>0,Riepilogo!N48/$E$2,"") ->  | F27: =IF(E27="","",CONCATENATE(Riepilogo!C48," - ",Riepilogo!K48)) ->  | H27: =IF(Riepilogo!O48>0,Riepilogo!O48/$H$2,"") ->  | I27: =IF(H27="","",CONCATENATE(Riepilogo!C48," - ",Riepilogo!K48)) ->  | L27: 0 | O27: 0 | R27: 0 | U27: 0 | V27: 0 | W27: =ISODD(SUM($V$4:V27)) -> FALSE
B28: =IF(Riepilogo!M49>0,Riepilogo!M49/$B$2,"") ->  | C28: =IF(B28="","",CONCATENATE(Riepilogo!C49," - ",Riepilogo!K49)) ->  | E28: =IF(Riepilogo!N49>0,Riepilogo!N49/$E$2,"") ->  | F28: =IF(E28="","",CONCATENATE(Riepilogo!C49," - ",Riepilogo!K49)) ->  | H28: =IF(Riepilogo!O49>0,Riepilogo!O49/$H$2,"") ->  | I28: =IF(H28="","",CONCATENATE(Riepilogo!C49," - ",Riepilogo!K49)) ->  | L28: 0 | O28: 0 | R28: 0 | U28: 0 | V28: 0 | W28: =ISODD(SUM($V$4:V28)) -> FALSE
B29: =IF(Riepilogo!M50>0,Riepilogo!M50/$B$2,"") ->  | C29: =IF(B29="","",CONCATENATE(Riepilogo!C50," - ",Riepilogo!K50)) ->  | E29: =IF(Riepilogo!N50>0,Riepilogo!N50/$E$2,"") ->  | F29: =IF(E29="","",CONCATENATE(Riepilogo!C50," - ",Riepilogo!K50)) ->  | H29: =IF(Riepilogo!O50>0,Riepilogo!O50/$H$2,"") ->  | I29: =IF(H29="","",CONCATENATE(Riepilogo!C50," - ",Riepilogo!K50)) ->  | L29: 0 | O29: 0 | R29: 0 | U29: 0 | V29: 0 | W29: =ISODD(SUM($V$4:V29)) -> FALSE
B30: =IF(Riepilogo!M51>0,Riepilogo!M51/$B$2,"") ->  | C30: =IF(B30="","",CONCATENATE(Riepilogo!C51," - ",Riepilogo!K51)) ->  | E30: =IF(Riepilogo!N51>0,Riepilogo!N51/$E$2,"") ->  | F30: =IF(E30="","",CONCATENATE(Riepilogo!C51," - ",Riepilogo!K51)) ->  | H30: =IF(Riepilogo!O51>0,Riepilogo!O51/$H$2,"") ->  | I30: =IF(H30="","",CONCATENATE(Riepilogo!C51," - ",Riepilogo!K51)) ->  | L30: 0 | O30: 0 | R30: 0 | U30: 0 | V30: 0 | W30: =ISODD(SUM($V$4:V30)) -> FALSE
B31: =IF(Riepilogo!M52>0,Riepilogo!M52/$B$2,"") ->  | C31: =IF(B31="","",CONCATENATE(Riepilogo!C52," - ",Riepilogo!K52)) ->  | E31: =IF(Riepilogo!N52>0,Riepilogo!N52/$E$2,"") ->  | F31: =IF(E31="","",CONCATENATE(Riepilogo!C52," - ",Riepilogo!K52)) ->  | H31: =IF(Riepilogo!O52>0,Riepilogo!O52/$H$2,"") ->  | I31: =IF(H31="","",CONCATENATE(Riepilogo!C52," - ",Riepilogo!K52)) ->  | L31: 0 | O31: 0 | R31: 0 | U31: 0 | V31: 0 | W31: =ISODD(SUM($V$4:V31)) -> FALSE
B32: =IF(Riepilogo!M53>0,Riepilogo!M53/$B$2,"") ->  | C32: =IF(B32="","",CONCATENATE(Riepilogo!C53," - ",Riepilogo!K53)) ->  | E32: =IF(Riepilogo!N53>0,Riepilogo!N53/$E$2,"") ->  | F32: =IF(E32="","",CONCATENATE(Riepilogo!C53," - ",Riepilogo!K53)) ->  | H32: =IF(Riepilogo!O53>0,Riepilogo!O53/$H$2,"") ->  | I32: =IF(H32="","",CONCATENATE(Riepilogo!C53," - ",Riepilogo!K53)) ->  | L32: 0 | O32: 0 | R32: 0 | U32: 0 | V32: 0 | W32: =ISODD(SUM($V$4:V32)) -> FALSE
B33: =IF(Riepilogo!M54>0,Riepilogo!M54/$B$2,"") ->  | C33: =IF(B33="","",CONCATENATE(Riepilogo!C54," - ",Riepilogo!K54)) ->  | E33: =IF(Riepilogo!N54>0,Riepilogo!N54/$E$2,"") ->  | F33: =IF(E33="","",CONCATENATE(Riepilogo!C54," - ",Riepilogo!K54)) ->  | H33: =IF(Riepilogo!O54>0,Riepilogo!O54/$H$2,"") ->  | I33: =IF(H33="","",CONCATENATE(Riepilogo!C54," - ",Riepilogo!K54)) ->  | L33: =IF(B33="",0,B33) -> 0 | O33: =IF(E33="",0,E33) -> 0 | R33: =IF(H33="",0,H33) -> 0 | U33: =SUM(L33:T33) -> 0 | V33: =IF(U33>0,1,0) -> 0 | W33: =ISODD(SUM($V$4:V33)) -> FALSE
B34: =IF(Riepilogo!M55>0,Riepilogo!M55/$B$2,"") ->  | C34: =IF(B34="","",CONCATENATE(Riepilogo!C55," - ",Riepilogo!K55)) ->  | E34: =IF(Riepilogo!N55>0,Riepilogo!N55/$E$2,"") ->  | F34: =IF(E34="","",CONCATENATE(Riepilogo!C55," - ",Riepilogo!K55)) ->  | H34: =IF(Riepilogo!O55>0,Riepilogo!O55/$H$2,"") ->  | I34: =IF(H34="","",CONCATENATE(Riepilogo!C55," - ",Riepilogo!K55)) ->  | L34: 0 | O34: 0 | R34: 0 | U34: 0 | V34: 0 | W34: =ISODD(SUM($V$4:V34)) -> FALSE
B35: =IF(Riepilogo!M56>0,Riepilogo!M56/$B$2,"") ->  | C35: =IF(B35="","",CONCATENATE(Riepilogo!C56," - ",Riepilogo!K56)) ->  | E35: =IF(Riepilogo!N56>0,Riepilogo!N56/$E$2,"") ->  | F35: =IF(E35="","",CONCATENATE(Riepilogo!C56," - ",Riepilogo!K56)) ->  | H35: =IF(Riepilogo!O56>0,Riepilogo!O56/$H$2,"") ->  | I35: =IF(H35="","",CONCATENATE(Riepilogo!C56," - ",Riepilogo!K56)) ->  | L35: 0 | O35: 0 | R35: 0 | U35: 0 | V35: 0 | W35: =ISODD(SUM($V$4:V35)) -> FALSE
B36: =IF(Riepilogo!M57>0,Riepilogo!M57/$B$2,"") ->  | C36: =IF(B36="","",CONCATENATE(Riepilogo!C57," - ",Riepilogo!K57)) ->  | E36: =IF(Riepilogo!N57>0,Riepilogo!N57/$E$2,"") ->  | F36: =IF(E36="","",CONCATENATE(Riepilogo!C57," - ",Riepilogo!K57)) ->  | H36: =IF(Riepilogo!O57>0,Riepilogo!O57/$H$2,"") ->  | I36: =IF(H36="","",CONCATENATE(Riepilogo!C57," - ",Riepilogo!K57)) ->  | L36: 0 | O36: 0 | R36: 0 | U36: 0 | V36: 0 | W36: =ISODD(SUM($V$4:V36)) -> FALSE
B37: =IF(Riepilogo!M58>0,Riepilogo!M58/$B$2,"") ->  | C37: =IF(B37="","",CONCATENATE(Riepilogo!C58," - ",Riepilogo!K58)) ->  | E37: =IF(Riepilogo!N58>0,Riepilogo!N58/$E$2,"") ->  | F37: =IF(E37="","",CONCATENATE(Riepilogo!C58," - ",Riepilogo!K58)) ->  | H37: =IF(Riepilogo!O58>0,Riepilogo!O58/$H$2,"") ->  | I37: =IF(H37="","",CONCATENATE(Riepilogo!C58," - ",Riepilogo!K58)) ->  | L37: 0 | O37: 0 | R37: 0 | U37: 0 | V37: 0 | W37: =ISODD(SUM($V$4:V37)) -> FALSE
B38: =IF(Riepilogo!M59>0,Riepilogo!M59/$B$2,"") ->  | C38: =IF(B38="","",CONCATENATE(Riepilogo!C59," - ",Riepilogo!K59)) ->  | E38: =IF(Riepilogo!N59>0,Riepilogo!N59/$E$2,"") ->  | F38: =IF(E38="","",CONCATENATE(Riepilogo!C59," - ",Riepilogo!K59)) ->  | H38: =IF(Riepilogo!O59>0,Riepilogo!O59/$H$2,"") ->  | I38: =IF(H38="","",CONCATENATE(Riepilogo!C59," - ",Riepilogo!K59)) ->  | L38: 0 | O38: 0 | R38: 0 | U38: 0 | V38: 0 | W38: =ISODD(SUM($V$4:V38)) -> FALSE
B39: =IF(Riepilogo!M60>0,Riepilogo!M60/$B$2,"") ->  | C39: =IF(B39="","",CONCATENATE(Riepilogo!C60," - ",Riepilogo!K60)) ->  | E39: =IF(Riepilogo!N60>0,Riepilogo!N60/$E$2,"") ->  | F39: =IF(E39="","",CONCATENATE(Riepilogo!C60," - ",Riepilogo!K60)) ->  | H39: =IF(Riepilogo!O60>0,Riepilogo!O60/$H$2,"") ->  | I39: =IF(H39="","",CONCATENATE(Riepilogo!C60," - ",Riepilogo!K60)) ->  | L39: 0 | O39: 0 | R39: 0 | U39: 0 | V39: 0 | W39: =ISODD(SUM($V$4:V39)) -> FALSE
B40: =IF(Riepilogo!M61>0,Riepilogo!M61/$B$2,"") ->  | C40: =IF(B40="","",CONCATENATE(Riepilogo!C61," - ",Riepilogo!K61)) ->  | E40: =IF(Riepilogo!N61>0,Riepilogo!N61/$E$2,"") ->  | F40: =IF(E40="","",CONCATENATE(Riepilogo!C61," - ",Riepilogo!K61)) ->  | H40: =IF(Riepilogo!O61>0,Riepilogo!O61/$H$2,"") ->  | I40: =IF(H40="","",CONCATENATE(Riepilogo!C61," - ",Riepilogo!K61)) ->  | L40: 0 | O40: 0 | R40: 0 | U40: 0 | V40: 0 | W40: =ISODD(SUM($V$4:V40)) -> FALSE
B41: =IF(Riepilogo!M62>0,Riepilogo!M62/$B$2,"") ->  | C41: =IF(B41="","",CONCATENATE(Riepilogo!C62," - ",Riepilogo!K62)) ->  | E41: =IF(Riepilogo!N62>0,Riepilogo!N62/$E$2,"") ->  | F41: =IF(E41="","",CONCATENATE(Riepilogo!C62," - ",Riepilogo!K62)) ->  | H41: =IF(Riepilogo!O62>0,Riepilogo!O62/$H$2,"") ->  | I41: =IF(H41="","",CONCATENATE(Riepilogo!C62," - ",Riepilogo!K62)) ->  | L41: 0 | O41: 0 | R41: 0 | U41: 0 | V41: 0 | W41: =ISODD(SUM($V$4:V41)) -> FALSE
V42: =IF($U$4>0,1,0) -> 0
B43: Configurazione RAID e/o NOTE | E43: Configurazione RAID e/o NOTE | H43: Configurazione RAID e/o NOTE | V43: =IF($U$4>0,1,0) -> 0
B44: =Lotto1_T340_1!H27 -> Specificare la configurazione RAID per l'installazione del Sistema Operativo, se richiesto. e/o inserire eventuali note. | E44: =Lotto1_T340_2!H27 -> Specificare la configurazione RAID per l'installazione del Sistema Operativo, se richiesto. e/o inserire eventuali note. | H44: =Lotto1_T340_3!H27 -> Specificare la configurazione RAID per l'installazione del Sistema Operativo, se richiesto. e/o inserire eventuali note. | V44: 0
V45: 0
V46: 0
V47: 0
V48: 0
V49: 0
V50: 0
V51: 0
V52: 0
V53: 0
V54: 0
V55: 0
V56: 1
V57: 1
B58: AREA RISERVATA AL FORNITORE | V58: 1
V59: 1
B60: VERIFICA STAGING | G60: VERIFICA INSTALLATORE | V60: 1
V61: 1
V62: 1
V63: 1
V64: 1
